Cogmind - Beta 10.2 @@@ ROGUE MODE // 2021.08.13 @ 10:19:36 Player: Demise Result: Smashed by cave-in Performance ------------- Evolutions (7) 3500 Regions Visited (36) 7200 Robots Destroyed (313) 1565 Value Destroyed (10801) 10801 Prototype IDs (109) 2180 Alien Tech Used (2) 400 Bonus (4432) 4432 TOTAL SCORE: 30078 Bonus ------- Triggered Max Security 1000 High Alert Combat Kills 848 Follower Combat Kills 651 Entered Garrisons 400 Used RIF Installer 500 Aligned with FarCom 300 Met Data Miner 300 Met Imprinter 300 Destroyed Z-Imprinter 1000 Exposed GOLEM Chamber 500 Friendly Fire -1367 Cogmind --------- Core Integrity 0/1300 Matter 42/300 Energy 180/180 System Corruption 36% Temperature Cool (0) Movement Flying (106) Ox1 Location -3/Quarantine Parts ------- > --- POWER (2) -------- Light Particle Reactor > --- PROPULSION (6) --- Improved Gyrokinetic Inverter Impulse Thruster Cooled Field Propulsion Drive > --- UTILITY (11) ----- Advanced Hacking Suite System Shield System Shield > --- WEAPON (2) ------- Heavy Gauss Cannon > --- INVENTORY (4) ---- Superbattery (2000) Experimental Matter Compressor (0) Mini Smartbomb Launcher Advanced Remote Datajack Peak State ------------ > --- POWER ------------ Micro Fission Core Light Antimatter Reactor > --- PROPULSION ------- Improved Antigrav System Improved Gyrokinetic Inverter Combat Linear Gravjet Combat Linear Gravjet Combat Linear Gravjet Combat Linear Gravjet > --- UTILITY ---------- Advanced Heat Sink Coolant Network Superbattery Advanced Launcher Guidance Computer Layered Heavy Armor Plating Force Field Advanced Hacking Suite Experimental Hacking Suite System Shield > --- WEAPON ----------- Quantum Rifle Hypervelocity Mass Driver > --- INVENTORY -------- Mini Smartbomb Launcher Centrium Greatsword Force Lance [Rating: 156] Favorites ----------- Power Micro Fission Core Engine Ion Engine Power Core Micro Fission Core Reactor Light Antimatter Reactor Propulsion Light Treads Treads Light Treads Leg Zionite Composite Leg I Wheel Centrium Wheel Hover Unit Combat Gravmag System Flight Unit Xenon Bombardment Thruster Utility Medium Storage Unit Device Advanced Weight Redist. System Storage Medium Storage Unit Processor Makeshift Salvage Targeting Computer Hackware System Shield Protection Zionite Weapon Casing Weapon Heavy Assault Rifle Energy Gun Zionite Phaser-S Energy Cannon Advanced Plasma Cannon Ballistic Gun Heavy Assault Rifle Ballistic Cannon Heavy Gauss Cannon Launcher Mini Smartbomb Launcher Special Weapon Mining Laser Impact Weapon Powered Hammer Slashing Weapon Plasma Sword Piercing Weapon Force Lance Special Melee Weapon Improved Datajack Build | -11 -10 -10 -9 -9 -9 -8 -8 -7 -7 -7 -7 -7 -7 -7 -7 -6 -6 -6 -6 -6 -6 -5 -5 -5 -5 -5 -5 -5 -4 -4 -4 -4 -3 -3 -3 -3 ------- Run | Scr Mat Min Mat Min Exi Min Mat Fac Was Fac Gar Fac Low Low Dat Pro Fac Low Low Zio Dee Pro Fac Was Fac Upp Upp Zhi Pro Fac Was Fac Res Gar Res Qua Slots Evolved 14 | . . . 2 . . . 2 2 . . . . . . . . 2 . . . . . 2 . . . . . . 2 . . 2 . . . Power 1 | . . . . . . . . . . . . . . . . . 1 . . . . . . . . . . . . . . . . . . . Propulsion 4 | . . . . . . . . 2 . . . . . . . . . . . . . . . . . . . . . 1 . . 1 . . . Utility 9 | . . . 2 . . . 2 . . . . . . . . . 1 . . . . . 2 . . . . . . 1 . . 1 . . . Weapon . | . . . . . . . . . . . . . . . . . . . . . . . . . . . . . . . . . . . . . Parts Attached 633 | 7 23 10 43 5 4 5 49 19 2 4 10 6 2 2 . 2 23 5 5 13 50 11 21 . 68 11 13 9 6 49 14 39 56 7 40 . Power 65 | 1 6 1 4 . . . 3 3 . . . 1 . . . . 2 2 . . 2 . 2 . 8 . . 2 . 4 7 4 6 1 6 . Engine 17 | 1 6 . 4 . . . 2 1 . . . . . . . . . 2 . . . . . . . . . . . . . . 1 . . . Core 27 | . . 1 . . . . 1 2 . . . . . . . . 2 . . . . . 2 . 8 . . 1 . 4 3 2 1 . . . Reactor 21 | . . . . . . . . . . . . 1 . . . . . . . . 2 . . . . . . 1 . . 4 2 4 1 6 . Propulsion 108 | 2 5 3 12 . . . 11 4 . 3 . 1 . . . . 6 . . 3 8 . 4 . 5 . . 3 . 6 1 9 14 . 8 . Treads 31 | 2 5 3 12 . . . 9 . . . . . . . . . . . . . . . . . . . . . . . . . . . . . Leg 7 | . . . . . . . 1 . . . . . . . . . . . . 1 5 . . . . . . . . . . . . . . . Wheel 2 | . . . . . . . . . . . . . . . . . . . . . . . . . . . . . . . . 1 1 . . . Hover 48 | . . . . . . . 1 . . . . . . . . . . . . 1 3 . 4 . 4 . . 3 . 6 1 6 13 . 6 . Flight 20 | . . . . . . . . 4 . 3 . 1 . . . . 6 . . 1 . . . . 1 . . . . . . 2 . . 2 . Utility 276 | 2 4 . 14 3 2 1 16 11 . 1 . . . 1 . . 8 . 2 9 31 8 13 . 41 10 10 3 4 30 3 11 21 3 14 . Device 156 | 2 . . 2 1 . 1 5 5 . . . . . 1 . . 3 . 2 6 15 4 4 . 34 10 9 2 3 18 2 5 15 . 7 . Storage 32 | . 3 . 1 1 2 . 2 5 . 1 . . . . . . . . . 2 2 1 1 . 1 . 1 . . 2 . 2 2 . 3 . Processor 11 | . 1 . 1 . . . . . . . . . . . . . . . . 1 . . 1 . 2 . . . 1 . . . 1 . 3 . Hackware 23 | . . . . . . . 1 1 . . . . . . . . 4 . . . . . 4 . 2 . . . . 4 . 2 1 3 1 . Protection 54 | . . . 10 1 . . 8 . . . . . . . . . 1 . . . 14 3 3 . 2 . . 1 . 6 1 2 2 . . . Artifact . | . . . . . . . . . . . . . . . . . . . . . . . . . . . . . . . . . . . . . Weapon 184 | 2 8 6 13 2 2 4 19 1 2 . 10 4 2 1 . 2 7 3 3 1 9 3 2 . 14 1 3 1 2 9 3 15 15 3 12 . Energy Gun 29 | . . . 1 . . . 6 . 1 . . . . . . . . . 1 . 6 1 2 . 3 . . . . . . 3 3 . 2 . Energy Cannon 28 | . . . . . . . . . . . 3 1 1 . . 1 2 . . . 1 . . . 2 1 1 . . 3 1 6 3 . 2 . Ballistic Gun 53 | 2 6 5 8 2 . 2 10 1 . . 1 . . . . . 1 1 . 1 . . . . 4 . 1 . 1 3 . . 2 . 2 . Ballistic Cannon 4 | . . . . . . . . . . . . . . . . . . . . . . . . . . . 1 . . . . . 2 . 1 . Launcher 25 | . . . 2 . 1 . . . . . 1 1 . . . . . 1 1 . . . . . 3 . . . 1 . . 4 5 1 4 . Special Weapon 11 | . 2 . 2 . . 2 1 . . . . . . . . . . . . . . . . . . . . . . . 1 2 . . 1 . Impact Weapon 8 | . . . . . . . 1 . 1 . 2 1 1 . . . 2 . . . . . . . . . . . . . . . . . . . Slashing Weapon 17 | . . . . . . . . . . . . . . 1 . 1 2 1 1 . 2 2 . . 2 . . 1 . 3 1 . . . . . Piercing Weapon 2 | . . . . . . . . . . . . . . . . . . . . . . . . . . . . . . . . . . 2 . . Special Melee Weapon 7 | . . 1 . . 1 . 1 . . . 3 1 . . . . . . . . . . . . . . . . . . . . . . . . Unidentified Prototypes 38 | . . . . . . . 1 1 1 . . 2 . . . . . . . . 11 . 2 . 3 . . 3 . 2 1 2 4 . 5 . Parts Lost 129 | . . . 7 . . . 8 . . . . . . . . . 9 3 4 2 4 5 3 1 4 1 . . 1 4 . 27 18 1 25 2 Power 20 | . . . 1 . . . 1 . . . . . . . . . . 2 1 1 . 1 1 . . . . . . . . 3 3 1 5 . Propulsion 25 | . . . 1 . . . 3 . . . . . . . . . 3 . 1 1 . . . . . . . . . 1 . 6 2 . 7 . Utility 62 | . . . 4 . . . 3 . . . . . . . . . 4 . 2 . 3 4 1 1 2 1 . . 1 3 . 13 9 . 9 2 Weapon 22 | . . . 1 . . . 1 . . . . . . . . . 2 1 . . 1 . 1 . 2 . . . . . . 5 4 . 4 . Highest Loss Streak 10 | . . . 2 . . . 2 . . . . . . . . . 4 3 2 2 2 3 1 1 3 1 . . 1 2 . 7 10 1 7 1 Average Slot Usage (%) 88 | . 99 100 96 100 89 88 86 95 100 100 100 99 100 99 100 100 84 72 75 65 80 93 97 75 89 99 99 100 96 95 90 63 76 86 74 46 Engine 2 | . 14 1 7 11 11 11 4 . . . . . . . . . . 5 6 4 . . . . . . . . . . . . . . . . Core 3 | . . 12 1 . . . 4 7 7 7 7 4 . . . . 4 . . . . . 7 2 7 11 11 11 11 9 8 6 3 4 1 . Reactor 1 | . . . . . . . . . . . . 2 7 7 7 7 6 . . . 5 10 1 . . . . . . . 1 1 3 3 4 4 Treads 7 | . 27 28 21 22 22 22 15 2 . . . . . . . . . . . . . . . . . . . . . . . . . . . . Leg 2 | . . . . . . . 1 . . . . . . . . . . . . . 16 26 13 . . . . . . . . . . . . . Hover 6 | . . . . . . . . . . . . . . . . . . . . . 1 . 9 23 22 23 23 23 23 23 26 15 22 28 23 4 Flight 4 | . . . . . . . . 25 30 30 30 30 30 30 30 30 21 13 11 4 . . . . . . . . . . . . . . 1 9 Device 11 | . 7 . . . . 10 7 18 23 22 15 15 15 15 15 15 10 13 19 23 18 10 6 1 12 14 22 23 23 13 5 4 18 9 5 . Storage 15 | . 18 28 23 33 23 22 19 9 7 7 15 15 15 15 15 15 13 13 13 12 11 15 15 17 17 17 17 15 11 10 10 8 4 1 1 . Hackware 9 | . . . . . . . 8 13 15 15 15 15 15 15 15 15 18 20 11 . . . 19 23 17 16 11 11 7 19 21 15 13 19 21 19 Protection 4 | . . . 19 10 11 . 7 . . . . . . . . . 1 . . . 8 16 7 . . 2 . 1 5 7 10 2 1 4 2 . Energy Gun 1 | . . . 1 . . . 5 . . . . . . . . . . . 5 4 3 3 5 . . . . . . . . . . . . . Energy Cannon 1 | . . . . . . . . . . . 2 . . . . . . . . . 3 6 5 5 5 10 10 5 5 4 5 3 1 4 2 . Ballistic Gun 7 | . 26 27 19 22 11 16 11 7 7 7 . . . . . . . 1 . . 1 . . . 1 . . 2 2 2 . . . . . . Naked Turns . | . . . . . . . . . . . . . . . . . . . . . . . . . . . . . . . . . . . . . Heaviest Build 164 | 8 41 43 62 62 124 128 163 164 22 30 35 33 33 33 33 33 44 44 40 43 70 89 85 68 112 102 102 98 101 104 102 104 70 65 70 25 Greatest Support 162 | 40 40 42 42 40 40 40 40 46 46 46 37 37 37 37 37 37 49 49 40 29 113 102 102 100 109 109 109 109 76 119 93 110 162 162 162 22 Greatest Overweight (x) 32 | 1 1 1 1 1 3 3 8 4 . . 2 2 . . 2 . 1 1 1 9 10 . 1 . 32 1 . 1 1 1 1 16 12 . 6 1 Average Overweight (x) . | . . . . 1 2 3 3 . . . . . . . . . . . . 1 . . . . . . . . 1 . . . . . . 1 Largest Inventory Capacity 52 | 4 16 16 22 22 32 32 52 40 8 12 12 12 12 12 12 12 12 12 12 12 12 20 16 16 24 20 20 20 20 20 20 20 4 4 4 4 Average Capacity 16 | 4 11 16 16 22 30 32 32 13 8 8 12 12 12 12 12 12 12 12 12 11 10 12 15 16 18 20 20 20 20 20 20 16 4 4 4 4 Most Carried 40 | 4 16 16 22 22 32 32 39 40 8 12 12 12 12 12 12 12 12 12 12 12 12 13 16 16 20 20 20 20 20 20 20 20 4 4 4 4 Average Carried 16 | 2 10 15 16 21 25 31 32 12 7 8 11 11 11 11 12 12 11 10 11 11 9 11 13 15 17 19 19 19 19 19 19 14 3 3 3 4 Final Capacity 40 | 4 16 16 22 22 32 32 40 8 8 12 12 12 12 12 12 12 12 12 12 12 12 12 16 16 20 20 20 20 20 20 20 4 4 4 4 4 Final Carried 39 | 4 16 16 21 22 32 32 39 8 8 12 12 12 12 12 12 12 9 12 12 12 12 11 16 16 20 19 20 20 20 20 19 4 4 4 4 4 Class Distribution -------------------- 33% | Hacker-Mutant 20% | Hauler-Mutant 16% | Scavenger-Mutant 11% | Mutant 9% | Machinist-Mutant 7% | Hacker-Sprinter Dominant Class ---------------- Mutant | -10/Materials Scavenger-Mutant | -10/Mines Scavenger-Mutant | -9/Materials Hauler-Mutant | -9/Mines Hauler-Mutant | -9/Exiles Hauler-Mutant | -8/Mines Hauler-Mutant | -8/Materials Hacker-Mutant | -7/Factory Hacker-Mutant | -7/Waste Hacker-Mutant | -7/Factory Hacker-Sprinter | -7/Garrison Hacker-Sprinter | -7/Factory Hacker-Sprinter | -7/Lower Caves Hacker-Sprinter | -7/Lower Caves Hacker-Sprinter | -7/Data Miner Hacker-Sprinter | -6/Proximity Caves Hacker-Sprinter | -6/Factory Hacker-Mutant | -6/Lower Caves Machinist-Mutant | -6/Lower Caves Machinist-Mutant | -6/Zion Scavenger-Mutant | -6/Deep Caves Scavenger-Mutant | -5/Proximity Caves Hacker-Mutant | -5/Factory Hacker-Mutant | -5/Waste Hacker-Mutant | -5/Factory Hacker-Mutant | -5/Upper Caves Machinist-Mutant | -5/Upper Caves Machinist-Mutant | -5/Zhirov Machinist-Mutant | -4/Proximity Caves Hacker-Mutant | -4/Factory Hacker-Mutant | -4/Waste Hacker-Mutant | -4/Factory Hacker-Mutant | -3/Research Hacker-Mutant | -3/Garrison Hacker-Mutant | -3/Research Hacker-Mutant | -3/Quarantine Resources | -11 -10 -10 -9 -9 -9 -8 -8 -7 -7 -7 -7 -7 -7 -7 -7 -6 -6 -6 -6 -6 -6 -5 -5 -5 -5 -5 -5 -5 -4 -4 -4 -4 -3 -3 -3 -3 ----------- Run | Scr Mat Min Mat Min Exi Min Mat Fac Was Fac Gar Fac Low Low Dat Pro Fac Low Low Zio Dee Pro Fac Was Fac Upp Upp Zhi Pro Fac Was Fac Res Gar Res Qua Matter Collected 10356 | 282 624 480 1140 116 48 89 1095 242 20 . 54 136 60 20 . 20 223 136 83 62 705 195 175 . 588 152 259 90 56 740 183 317 988 190 788 . Remotely 1076 | 61 . . . . . . . . . . . . . . . . . . . 62 125 . . . 242 . 162 . 38 328 . 24 34 . . . Salvage Created 14151 | 130 624 1105 1822 66 . 43 2389 327 62 51 67 217 . 42 . . 304 190 72 . 863 206 469 . 946 105 . 452 110 1001 284 467 721 230 786 . Parts 719 | 7 51 51 122 2 . 6 129 10 2 2 8 2 . . . . 20 5 6 . 22 4 32 . 56 5 . 1 4 45 6 33 38 6 44 . Haulers Intercepted 23 | . 2 . 3 . . . 6 2 . 1 . 3 . . . . . . . . . . 1 . 1 . . . . 3 . . . . 1 . Recyclers Shooed 16 | . 4 5 . . . . 1 1 . . . . . . . . . . . . . . . . . . . . . 1 . 1 2 . 1 . Parts Field Recycled . | . . . . . . . . . . . . . . . . . . . . . . . . . . . . . . . . . . . . . Retrieved Matter . | . . . . . . . . . . . . . . . . . . . . . . . . . . . . . . . . . . . . . Parts Self-Destructed 41 | . . . . . . . . . . . . . 2 21 . 7 . 4 2 . . 2 . . . . . 1 2 . . . . . . . Prevented 6 | . . . . . . . . . . . . . . . . 1 . . 1 . . . . . . . 4 . . . . . . . . . Kills | -11 -10 -10 -9 -9 -9 -8 -8 -7 -7 -7 -7 -7 -7 -7 -7 -6 -6 -6 -6 -6 -6 -5 -5 -5 -5 -5 -5 -5 -4 -4 -4 -4 -3 -3 -3 -3 ------- Run | Scr Mat Min Mat Min Exi Min Mat Fac Was Fac Gar Fac Low Low Dat Pro Fac Low Low Zio Dee Pro Fac Was Fac Upp Upp Zhi Pro Fac Was Fac Res Gar Res Qua Combat Hostiles Destroyed 211 | . 8 12 40 5 . . 29 . . . 4 . . 1 . . 3 2 4 . 11 3 5 . 15 1 . . 6 13 . 12 18 8 11 . Melee 9 | . . . . . . . . . . . . . . 1 . . . 1 . . 3 1 . . 1 . . . . . . . . . 2 . Guns 101 | . 8 12 33 5 . . 27 . . . . . . . . . 3 . . . 5 . 1 . 2 . . . 1 2 . . . . 2 . Cannons 36 | . . . . . . . . . . . . . . . . . . . . . 2 2 4 . 6 1 . . . 4 . 6 6 3 2 . AOE 53 | . . . 7 . . . . . . . 4 . . . . . . 1 4 . . . . . 4 . . . 5 7 . 3 9 5 4 . Classes Destroyed 22 | 2 6 2 3 1 . . 1 . . . . . . . . . . 2 . . 2 . . . 2 1 . . . . . . . . . . Worker 20 | . . 1 1 . . 2 5 . . . . . . . . . 1 . . . . . 1 . 5 . . . . . . . 4 . . . Builder 10 | . 1 . 1 . . . . . . . . . . . . . . . . . . . 1 . . . . . . 1 . 2 2 . 2 . Tunneler 4 | 2 . 1 . . . 1 . . . . . . . . . . . . . . . . . . . . . . . . . . . . . . Hauler 23 | . 2 . 3 . . . 6 2 . 1 . 3 . . . . . . . . . . 1 . 1 . . . . 3 . . . . 1 . Recycler 24 | 1 3 9 1 . . . 5 2 . . . . . . . . 1 . . . . . . . . . . . . 1 . . . . 1 . Minesweeper 2 | . . . . . . . . . . . . . . . . . . 1 1 . . . . . . . . . . . . . . . . . Mechanic 3 | . 1 . 1 . . . . . . . . . . . . . . . . . . . . . . . . . . . . 1 . . . . Operator 6 | . . . 1 . . . 1 1 . . . . . . . . 1 . . . . . 1 . 1 . . . . . . . . . . . Watcher 18 | . 3 . 3 . . . 3 2 . . 1 2 . . . . 1 . . . . . . . 1 . . . . 1 . 1 . . . . Swarmer 71 | . 6 6 7 4 . . 4 . . . 4 . . . . . 3 . 4 . . . . . 5 . . . 3 5 . 6 4 5 5 . Saboteur 1 | . . . . . . . . . . . . . . . . . . . . . . . . . 1 . . . . . . . . . . . Grunt 59 | . 2 4 23 . . . 16 . . . . . . 1 . . . . . . . 2 . . . . . . . 4 . 1 2 3 1 . Brawler 2 | . . . . . . . 1 . . . . . . . . . . . . . . . . . . . . . . . . . 1 . . . Duelist 1 | . . . 1 . . . . . . . . . . . . . . . . . . . . . . . . . . . . . . . . . Protector 1 | . . . 1 . . . . . . . . . . . . . . . . . . . . . . . . . . . . . . . . . Sentry 23 | . . 2 8 . . . 8 . . . . . . . . . . 1 . . . 1 1 . 2 . . . . . . . . . . . Hunter 10 | . . . . . . . . . . . . . . . . . . . . . . . . . 4 . . . 2 . . . 3 . 1 . Programmer 30 | . . . . . . . . . . . . . . . . . . 1 . . . . 4 . 3 . . . 1 4 . 5 8 . 4 . Enhanced Grunt 2 | . . . . . . . . . . . . . . . . . . . . . 2 . . . . . . . . . . . . . . . Z-Technician 5 | . . . . . . . . . . . . . . . . . . . . . 5 . . . . . . . . . . . . . . . Z-Light 1 | . . . . . . . . . . . . . . . . . . . . . 1 . . . . . . . . . . . . . . . Decomposer 1 | . . . . . . . . . . . . . . . . . . . . . . . . . . 1 . . . . . . . . . . Assembled 7 | . . . . 1 . . . . . . . . . . . . . . . . 6 . . . . . . . . . . . . . . . Golem 4 | . . . . . . . . . . . . . . . . . . . . . 4 . . . . . . . . . . . . . . . Mutant 1 | . . . . . . . . . . . . . . . . . . . . . . . . . . 1 . . . . . . . . . . Best Kill Streak 11 | 2 3 4 9 4 . 1 5 2 . 1 5 1 . 1 . . 4 1 4 . 5 1 4 . 5 1 . . 6 11 . 5 5 5 5 . Combat Bots Only 11 | . 3 3 4 4 . . 5 . . . 4 . . 1 . . 3 1 4 . 3 1 3 . 4 1 . . 6 11 . 4 3 5 4 . Max Kills in Single Turn 7 | 1 1 2 3 1 . 1 2 1 . 1 2 1 . 1 . . 1 1 3 . 1 1 2 . 2 1 . . 3 7 . 3 3 2 2 . Gunslinging 1 | . . 1 1 . . . . . . . . . . . . . . . . . . . . . . . . . . . . . . . . . Exploded 7 | . . . 3 . . . . . . . 2 . . . . . . 1 3 . . . . . 2 . . . 3 7 . 2 2 2 2 . Melee 1 | . . . . . . . . . . . . . . 1 . . . 1 . . 1 1 . . 1 . . . . . . . . . 1 . Uniques/NPCs Destroyed 1 | . . . . . . . . . . . . . . . . . . . . . 1 . . . . . . . . . . . . . . . Z-Imprinter (-6/Deep Caves) Combat | -11 -10 -10 -9 -9 -9 -8 -8 -7 -7 -7 -7 -7 -7 -7 -7 -6 -6 -6 -6 -6 -6 -5 -5 -5 -5 -5 -5 -5 -4 -4 -4 -4 -3 -3 -3 -3 -------- Run | Scr Mat Min Mat Min Exi Min Mat Fac Was Fac Gar Fac Low Low Dat Pro Fac Low Low Zio Dee Pro Fac Was Fac Upp Upp Zhi Pro Fac Was Fac Res Gar Res Qua Damage Taken 23509 | . 329 595 2069 253 . . 1744 . . . 12 60 . . . 57 888 138 107 264 1173 1130 337 63 1614 591 . . 302 1455 . 3720 2989 469 3002 148 Core 3989 | . 90 49 344 40 . . 254 . . . . 17 . . . 19 87 38 13 . 227 95 23 . 295 67 . . 33 140 . 838 563 . 725 32 Absorbed by Shields 847 | . . . . . . . . . . . 4 . . . . . 84 . . . . . . . 54 180 . . 107 392 . . 22 4 . . Core Remaining (%) 50 | 100 . 44 . . . 4 53 . . . . . . . . 94 . . . . . 45 . . . . . . 58 . . 8 . . . . Volleys Fired 1200 | 3 75 60 136 16 . 34 139 . . . 27 . 2 . . 5 15 3 13 . 91 22 42 . 102 16 8 . 19 85 . 75 103 42 52 15 Largest 2 | 2 2 2 2 2 . 2 2 . . . 1 . 1 . . 1 1 1 1 . 2 2 2 . 2 2 1 . 2 2 . 2 2 1 2 1 Hottest 218 | 40 100 46 100 46 . 100 100 . . . 98 . 98 . . 98 90 80 60 . 150 85 85 . 133 133 98 . 133 133 . 218 193 110 124 61 Shots Fired 1709 | 6 133 120 266 32 . 36 270 . . . 27 . 2 . . 5 15 3 12 . 117 37 60 . 107 23 8 . 20 108 . 83 108 41 57 13 Gun 1047 | 6 116 120 260 32 . 4 268 . . . . . . . . . 12 . 9 . 77 17 42 . 9 7 . . 1 23 . 3 27 . 14 . Cannon 524 | . . . . . . . . . . . 24 . 2 . . 5 3 . . . 40 20 18 . 93 16 8 . 12 85 . 62 58 38 27 13 Launcher 66 | . . . 5 . . . . . . . 3 . . . . . . 3 3 . . . . . 5 . . . 7 . . 8 23 3 6 . Special 72 | . 17 . 1 . . 32 2 . . . . . . . . . . . . . . . . . . . . . . . . 10 . . 10 . Kinetic 826 | 6 116 120 255 32 . 4 201 . . . . . . . . . 12 . . . 3 . . . 1 7 . . 1 23 . . 28 . 4 13 Thermal 570 | . 17 . 1 . . 32 4 . . . 24 . 2 . . 5 3 . . . 70 20 18 . 93 16 8 . 12 85 . 62 37 38 23 . Explosive 54 | . . . 5 . . . . . . . 3 . . . . . . 3 3 . . . . . 1 . . . 7 . . . 23 3 6 . Electromagnetic 143 | . . . 5 . . . 65 . . . . . . . . . . . 9 . 7 . . . 12 . . . . . . 11 20 . 14 . Phasic 96 | . . . . . . . . . . . . . . . . . . . . . 37 17 42 . . . . . . . . . . . . . Robot Hit Streak 31 | 2 7 12 31 9 . 6 31 . . . 2 . . . . . 4 . 3 . 10 13 21 . 11 13 . . 16 6 . 7 12 3 8 9 Robot Miss Streak 5 | 1 5 2 5 1 . . 5 . . . . . . . . . 2 . 2 . 5 4 1 . 3 1 . . . 4 . 5 5 2 5 1 Penetration Max 1 | . . . . . . . . . . . . . . . . . 1 . . . . . . . . . . . . 1 . . . . 1 . Secondary Targets 6 | . 1 2 1 2 . . . . . . . . . . . . . . . . . . . . . . . . . . . . . . . . Max Gunslinging Chain 1 | . 1 1 1 1 . . . . . . . . . . . . . . . . . . . . . . . . . . . . . . . . Shots Hit Robots 1001 | 3 63 77 185 22 4 3 187 17 1 2 2 8 . 11 . 3 11 9 6 . 67 32 31 . 44 13 . 8 3 36 16 40 49 9 37 2 Core Hits 501 | 4 30 34 75 6 . 3 81 3 . . 8 . . 2 . . 7 6 7 . 31 7 14 . 25 5 . 5 11 27 2 18 43 15 32 . Critical Hits 30 | . 1 . 1 . . . 1 . . . . . . . . . 1 . . . 1 . . . . 1 . 1 1 7 . 1 6 1 5 2 Critical Kills 8 | . . . 1 . . . . . . . . . . . . . . . . . 1 . . . . . . . 1 3 . . 2 . . . Critical Parts Destroyed 21 | . 1 . . . . . 1 . . . . . . . . . 1 . . . . . . . . 1 . . . 4 . 1 4 1 5 2 Melee Attacks 313 | . . . . . 4 . 1 53 1 8 10 40 4 19 . 10 39 12 . 28 20 4 . . 9 . . 8 . 9 16 . . . 18 . Impact 134 | . . . . . . . 1 53 1 8 9 39 4 . . . 19 . . . . . . . . . . . . . . . . . . . Slashing 149 | . . . . . . . . . . . . . . 13 . 10 20 12 . 28 20 4 . . 9 . . 8 . 9 16 . . . . . Piercing 18 | . . . . . . . . . . . . . . . . . . . . . . . . . . . . . . . . . . . 18 . Sneak Attacks 29 | . . . . . 4 . . 5 . 2 . 3 . 6 . . 1 1 . . 2 . . . 2 . . . . 3 . . . . . . Combat Hostiles . | . . . . . . . . . . . . . . . . . . . . . . . . . . . . . . . . . . . . . Follow-up Attacks . | . . . . . . . . . . . . . . . . . . . . . . . . . . . . . . . . . . . . . Damage Inflicted 37433 | 45 836 1025 3642 368 . 71 3007 900 107 180 305 566 . 178 . 108 514 616 574 . 2797 1329 1271 . 2585 284 . 1074 1000 3058 1237 2154 4213 960 2359 70 Guns 11968 | 45 812 1025 3030 368 . 47 2935 . . . . . . . . . 180 . 99 . 1066 462 564 . 117 50 . . 11 95 . 39 695 . 328 . Cannons 8137 | . . . . . . . . . . . 31 . . . . . . . . . 579 705 707 . 1301 234 . . 80 996 . 1467 1128 355 484 70 Explosions 9328 | . . . 612 . . . 72 . . . 274 . . . . . . 64 475 . . . . . 760 . . . 909 1484 . 642 2334 605 1097 . Melee 7883 | . . . . . . . . 900 107 180 . 566 . 178 . 108 334 552 . . 1152 162 . . 407 . . 1074 . 483 1237 . . . 443 . Ramming 69 | . . . . . . . . . . . . . . . . . . . . . . . . . . . . . . . . 6 56 . 7 . Kinetic 8732 | 45 812 1025 2960 368 . 47 2266 . . . . . . . . . 180 . . . 95 . . . . 50 . . 11 95 . . 637 . 71 70 Thermal 10307 | . 24 . 51 . . 24 72 . . . 31 . . . . . . . . . 1278 705 707 . 1543 234 . . 80 2480 . 1467 851 355 405 . Explosive 6977 | . . . 561 . . . . . . . 274 . . . . . . 64 475 . . . . . 224 . . . 909 . . 467 2334 605 1064 . Electromagnetic 2274 | . . . 70 . . . 669 . . . . . . . . . . . 99 . 107 . . . 411 . . . . . . 214 335 . 369 . Impact 1798 | . . . . . . . . 900 107 180 . 566 . . . . 45 . . . . . . . . . . . . . . . . . . . Slashing 5642 | . . . . . . . . . . . . . . 178 . 108 289 552 . . 1152 162 . . 407 . . 1074 . 483 1237 . . . . . Piercing 443 | . . . . . . . . . . . . . . . . . . . . . . . . . . . . . . . . . . . 443 . Phasic 1191 | . . . . . . . . . . . . . . . . . . . . . 165 462 564 . . . . . . . . . . . . . Highest Corruption 31 | . . . 1 1 1 1 1 . . . . 2 2 2 2 2 13 13 14 14 9 9 . 14 14 1 . . 5 9 9 22 25 25 30 31 Average Corruption 8 | . . . 1 1 1 1 1 . . . . 1 2 2 2 2 13 13 13 10 9 9 . 9 10 1 . . 5 5 9 14 16 25 27 30 Corruption Purged 19 | . . . . . . . . . . . . . . . . . . . . . . . . . 17 1 . . . 1 . . . . . . Effects 770 | . . . 3 3 5 5 9 . . . . 7 3 4 1 4 41 23 15 23 127 15 . 6 117 . . . 5 4 14 71 90 31 115 29 Message Errors 138 | . . . 1 1 3 3 6 . . . . 1 1 1 . 1 6 2 2 5 32 2 . 2 22 . . . . . 4 13 14 1 11 4 Matter Fused 110 | . . . . . . . . . . . . . . . . . 3 . 1 5 25 2 . 1 20 . . . 3 . 1 13 7 6 16 7 Heat Flow Errors 72 | . . . . . . . . . . . . 1 2 . 1 1 2 3 2 1 16 . . . 14 . . . 1 2 . 3 9 2 8 4 Energy Discharges 66 | . . . 1 1 2 1 . . . . . 4 . 2 . . 3 1 . 2 12 1 . 2 12 . . . . 1 1 7 4 3 4 2 Parts Rejected 5 | . . . . . . . . . . . . . . . . . . . . . . 2 . . 1 . . . . . . . 1 . 1 . Data Loss (minor) 74 | . . . . 1 . 1 3 . . . . . . . . 1 4 2 3 6 14 4 . 1 14 . . . . . 3 4 7 . 5 1 Data Loss (major) 28 | . . . . . . . . . . . . . . . . . 2 2 1 1 7 . . . 6 . . . . . 1 . 2 2 3 1 Misfires 14 | . . . . . . . . . . . . . . . . . . . . . 7 . . . 2 . . . . . . 1 . 2 2 . Alerts 5 | . . . . . . . . . . . . . . . . . . 1 . . . . . . . . . . . . . 1 2 . 1 . Misdirections 126 | . . . . . . . . . . . . . . . . . 13 10 4 2 . . . . 12 . . . . . . 13 28 3 41 . Targeting Errors 118 | . . . 1 . . . . . . . . 1 . 1 . 1 8 2 1 1 13 4 . . 10 . . . 1 1 4 14 15 9 23 8 Weapon Failures 14 | . . . . . . . . . . . . . . . . . . . 1 . 1 . . . 4 . . . . . . 2 1 3 . 2 Overload Shots . | . . . . . . . . . . . . . . . . . . . . . . . . . . . . . . . . . . . . . Overflow Damage 3106 | . . . 46 . . . 1 106 62 118 . 250 . . . . 45 136 59 . 8 46 82 . 249 . . 255 17 607 104 462 329 10 114 . Projectiles 401 | . . . . . . . . . . . . . . . . . . . . . 8 13 82 . 44 . . . 7 9 . 189 29 . 20 . Explosions 1275 | . . . 46 . . . 1 . . . . . . . . . . . 59 . . . . . 105 . . . 10 377 . 273 300 10 94 . Melee 1430 | . . . . . . . . 106 62 118 . 250 . . . . 45 136 . . . 33 . . 100 . . 255 . 221 104 . . . . . Knockbacks 16 | . . . . . . . . 3 1 1 . . . . . . . . . . . . . . . . . . . . . . 11 . . . Impact 5 | . . . . . . . . 3 1 1 . . . . . . . . . . . . . . . . . . . . . . . . . . Kinetic 10 | . . . . . . . . . . . . . . . . . . . . . . . . . . . . . . . . . 10 . . . Secondary 1 | . . . . . . . . . . . . . . . . . . . . . . . . . . . . . . . . . 1 . . . Self-Inflicted Damage 1253 | . . . 4 . . . . . . . . . . . . . . . . . . . . . 167 . . . . 433 . 501 128 . 20 . Shots 18 | . . . 1 . . . . . . . . . . . . . . . . . . . . . 2 . . . . 5 . 6 3 . 1 . Rammed 16 | . . . . . . . . . . . . . . . . . . . . . . . . . . . . . . . . 3 11 . 2 . Targets Rammed 16 | . . . . . . . . . . . . . . . . . . . . . . . . . . . . . . . . 3 11 . 2 . Kicked . | . . . . . . . . . . . . . . . . . . . . . . . . . . . . . . . . . . . . . Crushed . | . . . . . . . . . . . . . . . . . . . . . . . . . . . . . . . . . . . . . Highest Temperature 646 | . 100 24 24 12 . 40 27 . . . 180 266 287 6 103 339 271 254 173 158 399 646 . . 262 65 36 . 141 176 . 510 328 173 207 135 Average Temperature 88 | . 27 7 4 6 . 16 9 . . . 88 131 101 3 76 173 46 105 60 84 117 341 . . 66 16 16 . 72 39 . 155 89 62 63 68 Received Heat Transfer 3334 | . 78 201 741 . . . 774 . . . . . . . . 27 12 12 . . 237 363 36 . 156 102 . . . 95 . 123 23 135 219 . Effects 40 | . . . . . . . . . . . . . . . . 1 . . . . 8 13 . . . . . . . . . 17 1 . . . Shutdowns 8 | . . . . . . . . . . . . . . . . . . . . . 1 2 . . . . . . . . . 5 . . . . Energy Bleed 9 | . . . . . . . . . . . . . . . . 1 . . . . 3 4 . . . . . . . . . . 1 . . . Interference 13 | . . . . . . . . . . . . . . . . . . . . . 4 1 . . . . . . . . . 8 . . . . Matter Decay 1 | . . . . . . . . . . . . . . . . . . . . . . 1 . . . . . . . . . . . . . . Damage (minor) 2 | . . . . . . . . . . . . . . . . . . . . . . 2 . . . . . . . . . . . . . . Damage (major) 7 | . . . . . . . . . . . . . . . . . . . . . . 3 . . . . . . . . . 4 . . . . Siege Activations . | . . . . . . . . . . . . . . . . . . . . . . . . . . . . . . . . . . . . . Robots Corrupted 8 | . . . . . . . 2 . . . . . . . . . . . . . 1 . . . 2 . . . . . . . 2 . 1 . Combat Hostiles 8 | . . . . . . . 2 . . . . . . . . . . . . . 1 . . . 2 . . . . . . . 2 . 1 . Parts Fried 38 | . . . . . . . 4 10 . 1 . 5 . . . . . . 2 . . . . . 8 . . . . . . 2 3 . 3 . Impact Corruptions 17 | . . . . . . . . 8 2 2 . 5 . . . . . . . . . . . . . . . . . . . . . . . . Robots Melted . | . . . . . . . . . . . . . . . . . . . . . . . . . . . . . . . . . . . . . Combat Hostiles . | . . . . . . . . . . . . . . . . . . . . . . . . . . . . . . . . . . . . . Parts Melted 13 | . . . . . . . . . . . . . . . . . . . . . 1 1 . . 1 . . . . 1 . . 4 1 4 . Heat Transferred 9135 | . 50 . 100 . . 50 150 . . . 50 . . . . . . . . . 1131 400 375 . 1167 350 . . 100 2250 . 1440 876 225 421 . Parts Sabotaged 3 | . . . . . . . . . . . . . . . . . . . . . . . . . 3 . . . . . . . . . . . Parts Stolen . | . . . . . . . . . . . . . . . . . . . . . . . . . . . . . . . . . . . . . Parts Stripped . | . . . . . . . . . . . . . . . . . . . . . . . . . . . . . . . . . . . . . Power Chain Reactions 4 | . . . 1 . . . 1 . . . . . . . . . . . . . . . . . 1 . . . . . . . . . 1 . Missiles Intercepted . | . . . . . . . . . . . . . . . . . . . . . . . . . . . . . . . . . . . . . Alert | -11 -10 -10 -9 -9 -9 -8 -8 -7 -7 -7 -7 -7 -7 -7 -7 -6 -6 -6 -6 -6 -6 -5 -5 -5 -5 -5 -5 -5 -4 -4 -4 -4 -3 -3 -3 -3 ------- Run | Scr Mat Min Mat Min Exi Min Mat Fac Was Fac Gar Fac Low Low Dat Pro Fac Low Low Zio Dee Pro Fac Was Fac Upp Upp Zhi Pro Fac Was Fac Res Gar Res Qua Peak Influence 1613 | 15 214 161 845 425 . 15 403 217 51 91 317 453 . . . . 283 . . . . . 558 188 708 . . . . 544 148 482 887 966 677 1613 Initial 619 | . 9 6 20 320 . . . 16 51 35 . 165 . . . . 114 . . . . . 44 158 124 . . . . 113 148 103 168 619 543 363 Average 231 | 7 61 84 400 323 . 2 107 49 51 42 173 191 . . . . 178 . . . . . 274 177 292 . . . . 203 148 287 275 756 491 1603 Maximum Alert Level 5 | . 1 . 3 2 . . 2 1 . . 1 2 . . . . 1 . . . . . 2 . 3 . . . . 2 . 2 3 3 2 5 Low Security (%) 62 | 100 92 100 29 . . 100 84 91 100 100 57 56 . . . . 64 . . . . . 50 100 51 . . . . 60 100 29 69 . 4 . Level 1 17 | . 7 . 26 56 . . 12 8 . . 42 39 . . . . 35 . . . . . 9 . 13 . . . . 28 . 50 1 . 17 . Level 2 14 | . . . 21 43 . . 3 . . . . 4 . . . . . . . . . . 40 . 34 . . . . 10 . 20 16 30 77 . Level 3 3 | . . . 22 . . . . . . . . . . . . . . . . . . . . . . . . . . . . . 12 69 . . Level 4 . | . . . . . . . . . . . . . . . . . . . . . . . . . . . . . . . . . . . . . Level 5 . | . . . . . . . . . . . . . . . . . . . . . . . . . . . . . . . . . . . . . High Security . | . . . . . . . . . . . . . . . . . . . . . . . . . . . . . . . . . . . . . Max Security 1 | . . . . . . . . . . . . . . . . . . . . . . . . . . . . . . . . . . . . 99 Squads Dispatched 103 | . . . 9 . . . 3 2 . 1 . 6 . 1 . . 10 . . . . . 6 . 12 . . . . 6 . 8 11 . 7 21 Investigation 31 | . . . 6 . . . 1 1 . 1 . 4 . . . . 4 . . . . . 3 . 4 . . . . 3 . 2 2 . . . Extermination 16 | . . . . . . . . 1 . . . 1 . . . . . . . . . . 1 . 3 . . . . 2 . 3 3 . 2 . Reinforcement 18 | . . . 1 . . . 2 . . . . . . . . . . . . . . . 1 . 4 . . . . 1 . 2 2 . 4 1 Assault 29 | . . . 2 . . . . . . . . . . 1 . . . . . . . . 1 . 1 . . . . . . 1 2 . 1 20 Garrison 9 | . . . . . . . . . . . . 1 . . . . 6 . . . . . . . . . . . . . . . 2 . . . Intercept . | . . . . . . . . . . . . . . . . . . . . . . . . . . . . . . . . . . . . . Construction Impeded 6 | . . . . . . . . . . . . . . . . . . . . . . . . . 1 . . . . 1 . 1 1 . 2 . Haulers Reinforced 5 | . . . . . . . . . . . . . . . . . . . . . . . 1 . 1 . . . . . . 1 1 . 1 . Stealth | -11 -10 -10 -9 -9 -9 -8 -8 -7 -7 -7 -7 -7 -7 -7 -7 -6 -6 -6 -6 -6 -6 -5 -5 -5 -5 -5 -5 -5 -4 -4 -4 -4 -3 -3 -3 -3 --------- Run | Scr Mat Min Mat Min Exi Min Mat Fac Was Fac Gar Fac Low Low Dat Pro Fac Low Low Zio Dee Pro Fac Was Fac Upp Upp Zhi Pro Fac Was Fac Res Gar Res Qua Distress Signals 38 | . 3 . 7 . . . 7 1 . 1 . . . . . . 2 . . . . . 1 . 3 . . . . 1 . 3 3 . 6 . Communications Jammed . | . . . . . . . . . . . . . . . . . . . . . . . . . . . . . . . . . . . . . Distress Signals . | . . . . . . . . . . . . . . . . . . . . . . . . . . . . . . . . . . . . . Times Spotted 576 | . 20 12 69 6 . . 54 11 . 3 4 6 1 17 . 6 24 3 4 . 15 6 14 6 43 22 . . 6 34 . 52 41 3 58 36 Peak Tracking Total 47 | . 4 3 5 4 . . 5 4 . 2 5 2 3 8 . 4 8 4 4 . 3 3 6 6 10 15 . . 3 8 . 10 8 3 13 47 Tactical Retreats 77 | . 1 1 8 . . . 2 2 . 1 . 2 1 1 . 1 7 1 . . . 2 . 1 10 3 . . 2 4 . 13 2 . 12 . Traps | -11 -10 -10 -9 -9 -9 -8 -8 -7 -7 -7 -7 -7 -7 -7 -7 -6 -6 -6 -6 -6 -6 -5 -5 -5 -5 -5 -5 -5 -4 -4 -4 -4 -3 -3 -3 -3 ------- Run | Scr Mat Min Mat Min Exi Min Mat Fac Was Fac Gar Fac Low Low Dat Pro Fac Low Low Zio Dee Pro Fac Was Fac Upp Upp Zhi Pro Fac Was Fac Res Gar Res Qua Traps Triggered 29 | . 3 . 1 . . . 1 1 . . 2 1 . . . . 3 1 1 . . . 1 . 2 . . . . 3 . 4 2 1 2 . Indirectly . | . . . . . . . . . . . . . . . . . . . . . . . . . . . . . . . . . . . . . Trap Hack Attempts 130 | . . 1 . . . . 84 . . . 45 . . . . . . . . . . . . . . . . . . . . . . . . . Triggered 1 | . . 1 . . . . . . . . . . . . . . . . . . . . . . . . . . . . . . . . . . Disarmed 1 | . . . . . . . 1 . . . . . . . . . . . . . . . . . . . . . . . . . . . . . Reprogrammed 17 | . . . . . . . 4 . . . 7 . . . . . 6 . . . . . . . . . . . . . . . . . . . Reused 2 | . . . . . . . . . . . . . . . . . . . . . 2 . . . . . . . . . . . . . . . Traps Extracted 7 | . . . . 3 . . 4 . . . . . . . . . . . . . . . . . . . . . . . . . . . . . Installed 5 | . . . . . . . 3 . . . . . . . . . . . . . 2 . . . . . . . . . . . . . . . Triggered 5 | . . . . . . . . . . . . . 2 . . 1 . . . . . . . . . . 1 . . . . 1 . . . . Exploded 2 | . . . . . . . 2 . . . . . . . . . . . . . . . . . . . . . . . . . . . . . Machines | -11 -10 -10 -9 -9 -9 -8 -8 -7 -7 -7 -7 -7 -7 -7 -7 -6 -6 -6 -6 -6 -6 -5 -5 -5 -5 -5 -5 -5 -4 -4 -4 -4 -3 -3 -3 -3 ---------- Run | Scr Mat Min Mat Min Exi Min Mat Fac Was Fac Gar Fac Low Low Dat Pro Fac Low Low Zio Dee Pro Fac Was Fac Upp Upp Zhi Pro Fac Was Fac Res Gar Res Qua Machines Disabled 40 | . 1 1 1 1 . . 2 . . . . . . . . . 2 . . . 2 . 1 . 3 1 . . . 10 . 9 2 2 2 . Max in Single Turn 6 | . 1 1 1 1 . . 1 . . . . . . . . . 1 . . . 1 . 1 . 1 1 . . . 5 . 6 1 1 1 . Garrison Access 5 | . . . . . . . 1 . . . . . . . . . 1 . . . . . . . 1 . . . . 1 . . 1 . . . Garrison Relay 2 | . . . . . . . . . . . . . . . . . . . . . . . . . . . . . . . . . . 2 . . Machines Sabotaged . | . . . . . . . . . . . . . . . . . . . . . . . . . . . . . . . . . . . . . Garrisons Compromised . | . . . . . . . . . . . . . . . . . . . . . . . . . . . . . . . . . . . . . Overloaded Fab Kills . | . . . . . . . . . . . . . . . . . . . . . . . . . . . . . . . . . . . . . Fab Network Shutdowns 3 | . . . . . . . . . . . . 1 . . . . . . . . . . 1 . . . . . . . . . 1 . . . Hacking | -11 -10 -10 -9 -9 -9 -8 -8 -7 -7 -7 -7 -7 -7 -7 -7 -6 -6 -6 -6 -6 -6 -5 -5 -5 -5 -5 -5 -5 -4 -4 -4 -4 -3 -3 -3 -3 --------- Run | Scr Mat Min Mat Min Exi Min Mat Fac Was Fac Gar Fac Low Low Dat Pro Fac Low Low Zio Dee Pro Fac Was Fac Upp Upp Zhi Pro Fac Was Fac Res Gar Res Qua Machines Accessed 193 | . 11 1 14 . 2 . 14 12 . 16 . 27 . 3 3 . 20 1 . . . . 9 . 17 . . 4 . 18 . 8 9 . 4 . Terminals 96 | . 8 . 11 . . . 9 8 . 8 . 14 . . . . 9 . . . . . 5 . 7 . . . . 7 . 4 4 . 2 . Fabricators 20 | . . . . . . . . 1 . 2 . 6 . . . . 2 . . . . . 2 . 3 . . . . 1 . . 2 . 1 . Repair Stations 16 | . 1 . 1 . . . 1 1 . 3 . . . . . . 1 . . . . . 1 . 1 . . . . 3 . 2 1 . . . Recycling Units 25 | . 2 . 1 . . . 2 . . . . 5 . . . . 5 . . . . . . . 4 . . . . 4 . 2 . . . . Scanalyzers 6 | . . . 1 . . . 1 1 . 1 . 1 . . . . . . . . . . . . . . . . . 1 . . . . . . Garrison Access 16 | . . . . . . . 1 1 . 2 . 1 . . . . 3 . . . . . 1 . 2 . . . . 2 . . 2 . 1 . Total Hacks 719 | . 36 1 47 . 2 . 73 40 . 49 . 88 . 9 21 . 63 1 . . . . 49 . 82 . . 17 . 83 . 21 31 . 6 . Successful 482 | . 24 1 31 . 2 . 40 27 . 34 . 54 . 9 21 . 37 1 . . . . 25 . 58 . . 17 . 65 . 15 18 . 3 . Failed 233 | . 11 . 15 . . . 32 13 . 15 . 33 . . . . 26 . . . . . 24 . 24 . . . . 18 . 6 13 . 3 . Catastrophic 24 | . . . 1 . . . 2 1 . 5 . 2 . . . . 4 . . . . . 2 . 3 . . . . 2 . 1 1 . . . Database Lockouts 4 | . 1 . 1 . . . 1 . . . . 1 . . . . . . . . . . . . . . . . . . . . . . . . Manual 358 | . 27 . 39 . 1 . 45 21 . 27 . 41 . . . . 24 . . 1 . . 32 . 41 1 . . . 35 . 7 11 . 5 . Terminals 374 | . 28 . 35 . . . 54 27 . 29 . 48 . . . . 28 . . . . . 28 . 35 . . . . 33 . 10 16 . 3 . Fabricators 82 | . . . . . . . . 6 . 6 . 17 . . . . 13 . . . . . 13 . 14 . . . . 6 . . 6 . 1 . Repair Stations 55 | . 2 . 3 . . . 7 2 . 5 . . . . . . 2 . . . . . 3 . 10 . . . . 12 . 7 2 . . . Recycling Units 88 | . 6 . 6 . . . 5 . . . . 17 . . . . 14 . . . . . . . 19 . . . . 17 . 4 . . . . Scanalyzers 29 | . . . 3 . . . 6 2 . 4 . 2 . . . . . . . . . . . . . . . . . 12 . . . . . . Garrison Access 40 | . . . . . . . 1 3 . 5 . 4 . . . . 6 . . . . . 5 . 4 . . . . 3 . . 7 . 2 . Terminal Hacks 177 | . 7 1 9 . 2 . 14 11 . 13 . 18 . 9 21 . 9 1 . . . . 9 . 12 . . 17 . 11 . 5 8 . . . Record 26 | . . . . . 1 . . . . . . . . 7 11 . . . . . . . . . . . . 5 . 1 . . 1 . . . Part Schematic 32 | . . . 2 . . . . 3 . 3 . 3 . . 7 . 3 . . . . . 3 . 3 . . 4 . . . 1 . . . . Robot Schematic 2 | . . . . . . . . . . . . 2 . . . . . . . . . . . . . . . . . . . . . . . . Robot Analysis 14 | . 3 . 1 . . . 3 . . 2 . . . . . . 1 . . . . . . . . . . 4 . . . . . . . . Prototype ID Bank 18 | . 2 . . . . . 1 1 . 2 . 3 . . 3 . . . . . . . 1 . . . . 4 . . . . 1 . . . Open Door 4 | . . 1 . . . . . . . . . . . 2 . . . 1 . . . . . . . . . . . . . . . . . . Level Access Points 2 | . . . . . . . 1 . . . . . . . . . . . . . . . . . . . . . . 1 . . . . . . Branch Access Points 9 | . . . . . . . 1 1 . 2 . 1 . . . . 1 . . . . . . . 1 . . . . 1 . . 1 . . . Machine Index 1 | . . . . . . . . . . . . 1 . . . . . . . . . . . . . . . . . . . . . . . . Terminal Index 10 | . 1 . . . . . 1 1 . 1 . 1 . . . . . . . . . . 1 . 1 . . . . 1 . 1 1 . . . Fabricator Index 9 | . . . . . . . . 1 . 1 . 1 . . . . 1 . . . . . 1 . 1 . . . . 1 . 1 1 . . . Garrison Index 3 | . . . . . . . . . . . . 1 . . . . . . . . . . 1 . 1 . . . . . . . . . . . Alert Level 1 | . . . . . . . . . . . . . . . . . . . . . . . . . . . . . . . . . 1 . . . Unreport Threat 14 | . . . . . . . 4 2 . 1 . 2 . . . . 1 . . . . . . . . . . . . 1 . 1 2 . . . Locate Traps 15 | . . . 2 . . . 2 . . . . . . . . . 1 . . . . . 2 . 4 . . . . 3 . 1 . . . . Reprogram Traps 1 | . . . . . . . . . . . . . . . . . 1 . . . . . . . . . . . . . . . . . . . Recall Investigation 1 | . . . 1 . . . . . . . . . . . . . . . . . . . . . . . . . . . . . . . . . Recall Extermination 4 | . . . . . . . . 1 . . . 1 . . . . . . . . . . . . 1 . . . . 1 . . . . . . Hauler Manifests 1 | . . . 1 . . . . . . . . . . . . . . . . . . . . . . . . . . . . . . . . . Registered Prototypes 1 | . . . . . . . . . . . . 1 . . . . . . . . . . . . . . . . . . . . . . . . Zone Layout 8 | . 1 . 2 . . . 1 1 . 1 . 1 . . . . . . . . . . . . . . . . . 1 . . . . . . EX-Prototype ID Bank 1 | . . . . . 1 . . . . . . . . . . . . . . . . . . . . . . . . . . . . . . . Fabricator Hacks 46 | . . . . . . . . 4 . 4 . 7 . . . . 7 . . . . . 5 . 11 . . . . 4 . . 3 . 1 . Load Schematic 18 | . . . . . . . . 2 . 2 . 2 . . . . 3 . . . . . 2 . 5 . . . . 2 . . . . . . Build 28 | . . . . . . . . 2 . 2 . 5 . . . . 4 . . . . . 3 . 6 . . . . 2 . . 3 . 1 . Repair Station Hacks 47 | . 2 . 3 . . . 6 2 . 4 . . . . . . 2 . . . . . 2 . 10 . . . . 10 . 6 . . . . Scan Component 24 | . 1 . 2 . . . 3 1 . 2 . . . . . . 1 . . . . . 1 . 5 . . . . 5 . 3 . . . . Repair 23 | . 1 . 1 . . . 3 1 . 2 . . . . . . 1 . . . . . 1 . 5 . . . . 5 . 3 . . . . Recycling Unit Hacks 40 | . 4 . 2 . . . 2 . . . . 8 . . . . 8 . . . . . . . 6 . . . . 8 . 2 . . . . Process 1 | . . . . . . . . . . . . . . . . . . . . . . . . . . . . . . 1 . . . . . . Retrieve Matter 13 | . 1 . 1 . . . . . . . . 3 . . . . 2 . . . . . . . 3 . . . . 3 . . . . . . Retrieve Components 26 | . 3 . 1 . . . 2 . . . . 5 . . . . 6 . . . . . . . 3 . . . . 4 . 2 . . . . Scanalyzer 26 | . . . 2 . . . 6 2 . 4 . . . . . . . . . . . . . . . . . . . 12 . . . . . . Insert Component 13 | . . . 1 . . . 3 1 . 2 . . . . . . . . . . . . . . . . . . . 6 . . . . . . Analyze 13 | . . . 1 . . . 3 1 . 2 . . . . . . . . . . . . . . . . . . . 6 . . . . . . Garrison Access Hacks 7 | . . . . . . . 1 . . 1 . . . . . . 1 . . . . . 1 . 1 . . . . 1 . . 1 . . . Unlock Access 3 | . . . . . . . . . . 1 . . . . . . . . . . . . 1 . . . . . . . . . 1 . . . Seal Access 4 | . . . . . . . 1 . . . . . . . . . 1 . . . . . . . 1 . . . . 1 . . . . . . Unauthorized Hacks 139 | . 11 . 15 . . . 11 8 . 8 . 21 . . . . 10 . . . . . 8 . 18 . . . . 19 . 2 6 . 2 . Terminals 81 | . 10 . 12 . . . 10 7 . 4 . 9 . . . . 5 . . . . . 6 . 6 . . . . 7 . 2 2 . 1 . Track 4 | . 1 . 2 . . . . . . . . 1 . . . . . . . . . . . . . . . . . . . . . . . . Assimilate 8 | . 2 . . . . . . 1 . 1 . 1 . . . . . . . . . . . . . . . . . 2 . . . . 1 . Botnet 58 | . 5 . 9 . . . 9 5 . 3 . 7 . . . . 4 . . . . . 5 . 4 . . . . 4 . 2 1 . . . Detonate 1 | . 1 . . . . . . . . . . . . . . . . . . . . . . . . . . . . . . . . . . . Disrupt 3 | . . . . . . . . . . . . . . . . . . . . . . . . . 2 . . . . 1 . . . . . . Operators 7 | . 1 . 1 . . . 1 1 . . . . . . . . 1 . . . . . 1 . . . . . . . . . 1 . . . Fabricators 9 | . . . . . . . . . . 1 . 2 . . . . 1 . . . . . 1 . 2 . . . . 2 . . . . . . Report 5 | . . . . . . . . . . . . 1 . . . . 1 . . . . . 1 . 1 . . . . 1 . . . . . . Siphon 3 | . . . . . . . . . . . . 1 . . . . . . . . . . . . 1 . . . . 1 . . . . . . Haulers 1 | . . . . . . . . . . 1 . . . . . . . . . . . . . . . . . . . . . . . . . . Repair Stations 1 | . . . . . . . . . . 1 . . . . . . . . . . . . . . . . . . . . . . . . . . Mechanics 1 | . . . . . . . . . . 1 . . . . . . . . . . . . . . . . . . . . . . . . . . Recycling Units 31 | . 1 . 3 . . . 1 . . . . 8 . . . . 1 . . . . . . . 9 . . . . 8 . . . . . . Monitor 1 | . . . . . . . . . . . . . . . . . . . . . . . . . 1 . . . . . . . . . . . Reject 9 | . . . 1 . . . . . . . . 2 . . . . . . . . . . . . 3 . . . . 3 . . . . . . Recyclers 10 | . 1 . 1 . . . . . . . . 3 . . . . 1 . . . . . . . 2 . . . . 2 . . . . . . Mask 11 | . . . 1 . . . 1 . . . . 3 . . . . . . . . . . . . 3 . . . . 3 . . . . . . Scanalyzers . | . . . . . . . . . . . . . . . . . . . . . . . . . . . . . . . . . . . . . Garrison Access 17 | . . . . . . . . 1 . 2 . 2 . . . . 3 . . . . . 1 . 1 . . . . 2 . . 4 . 1 . Redirect 1 | . . . . . . . . . . 1 . . . . . . . . . . . . . . . . . . . . . . . . . . Reprogram 9 | . . . . . . . . 1 . 1 . 1 . . . . 2 . . . . . . . . . . . . 1 . . 3 . . . Watchers 7 | . . . . . . . . . . . . 1 . . . . 1 . . . . . 1 . 1 . . . . 1 . . 1 . 1 . Data Cores Recovered 1 | . . . 1 . . . . . . . . . . . . . . . . . . . . . . . . . . . . . . . . . Used . | . . . . . . . . . . . . . . . . . . . . . . . . . . . . . . . . . . . . . Hacking Detections 133 | . 8 . 12 . . . 11 8 . 9 . 21 . . . . 18 . . . . . 8 . 11 . . . . 11 . 6 8 . 2 . Full Trace Events 31 | . 3 . 6 . . . 1 1 . 1 . 4 . . . . 3 . . . . . 3 . 4 . . . . 3 . 1 1 . . . Feedback Events 3 | . . . 1 . . . . . . . . 1 . . . . 1 . . . . . . . . . . . . . . . . . . . Corruption 2 | . . . 1 . . . . . . . . 1 . . . . . . . . . . . . . . . . . . . . . . . . Hackware Fried 1 | . . . . . . . . . . . . . . . . . 1 . . . . . . . . . . . . . . . . . . . Feedback Blocked . | . . . . . . . . . . . . . . . . . . . . . . . . . . . . . . . . . . . . . Robot Schematics Acquired 2 | . . . . . . . . . . . . 2 . . . . . . . . . . . . . . . . . . . . . . . . Robots Built 3 | . . . . . . . . . . . . 3 . . . . . . . . . . . . . . . . . . . . . . . . Matter 405 | . . . . . . . . . . . . 405 . . . . . . . . . . . . . . . . . . . . . . . . Time 148 | . . . . . . . . . . . . 148 . . . . . . . . . . . . . . . . . . . . . . . . Total Robot Build Rating 9 | . . . . . . . . . . . . 9 . . . . . . . . . . . . . . . . . . . . . . . . Part Schematics Acquired 43 | . . . 3 . . . 3 4 . 5 . 3 . . 7 . 3 . . . . . 3 . 3 . . 4 . 4 . 1 . . . . Parts Built 29 | . . . . . . . . 2 . 4 . 2 . . . . 2 . . . . . 5 . 6 . . . . 3 . . 4 . 1 . Matter 4447 | . . . . . . . . 204 . 424 . 234 . . . . 636 . . . . . 636 . 1107 . . . . 372 . . 556 . 278 . Time 1477 | . . . . . . . . 50 . 159 . 117 . . . . 168 . . . . . 141 . 307 . . . . 258 . . 138 . 139 . Total Part Build Rating 173 | . . . . . . . . 2 . 24 . 14 . . . . 12 . . . . . 30 . 29 . . . . 17 . . 36 . 9 . Parts Repaired 21 | . 1 . 1 . . . 3 1 . 2 . . . . . . 1 . . . . . 1 . 5 . . . . 4 . 2 . . . . Time 1053 | . 26 . 38 . . . 114 19 . 134 . . . . . . 44 . . . . . 56 . 262 . . . . 187 . 173 . . . . Parts Recycled . | . . . . . . . . . . . . . . . . . . . . . . . . . . . . . . . . . . . . . Recycled Matter . | . . . . . . . . . . . . . . . . . . . . . . . . . . . . . . . . . . . . . Retrieved Matter 361 | . . . 205 . . . . . . . . . . . . . . . . . . . . . 156 . . . . . . . . . . . Retrieved Components 107 | . 18 . 10 . . . 15 . . . . 11 . . . . 9 . . . . . . . 17 . . . . 16 . 11 . . . . Parts Scanalyzed 11 | . . . 1 . . . 3 1 . 2 . . . . . . . . . . . . . . . . . . . 4 . . . . . . Part Schematics Acquired 11 | . . . 1 . . . 3 1 . 2 . . . . . . . . . . . . . . . . . . . 4 . . . . . . Parts Damaged . | . . . . . . . . . . . . . . . . . . . . . . . . . . . . . . . . . . . . . Bothacking | -11 -10 -10 -9 -9 -9 -8 -8 -7 -7 -7 -7 -7 -7 -7 -7 -6 -6 -6 -6 -6 -6 -5 -5 -5 -5 -5 -5 -5 -4 -4 -4 -4 -3 -3 -3 -3 ------------ Run | Scr Mat Min Mat Min Exi Min Mat Fac Was Fac Gar Fac Low Low Dat Pro Fac Low Low Zio Dee Pro Fac Was Fac Upp Upp Zhi Pro Fac Was Fac Res Gar Res Qua Used RIF Installer 1 | . . . . . . . . . . . . . . . . . . . . . . . . . . . . . . . . . . 1 . . Robots Hacked 8 | . . . . . 4 . . . . . . . . . . . . . . . . . . . . . . . . . . . . . 4 . Non-combat 5 | . . . . . 3 . . . . . . . . . . . . . . . . . . . . . . . . . . . . . 2 . Combat 3 | . . . . . 1 . . . . . . . . . . . . . . . . . . . . . . . . . . . . . 2 . Robot Hacks Applied 9 | . . . . . 4 . . . . . . . . . . . . . . . . . . . . . . . . . . . . . 5 . parse_system 4 | . . . . . 4 . . . . . . . . . . . . . . . . . . . . . . . . . . . . . . . purge_threat 2 | . . . . . . . . . . . . . . . . . . . . . . . . . . . . . . . . . . . 2 . map_route 1 | . . . . . . . . . . . . . . . . . . . . . . . . . . . . . . . . . . . 1 . formatsys_high 2 | . . . . . . . . . . . . . . . . . . . . . . . . . . . . . . . . . . . 2 . Relay Couplers Released 10 | . . . . . . . . . . . . . . . . . . . . . . . . . . . . . . . . . 4 6 . . Machine Destruction 7 | . . . . . . . . . . . . . . . . . . . . . . . . . . . . . . . . . 1 6 . . Programmers 3 | . . . . . . . . . . . . . . . . . . . . . . . . . . . . . . . . . 3 . . . Attached 3 | . . . . . . . . . . . . . . . . . . . . . . . . . . . . . . . . . . 3 . . Robots Rewired 2 | . . . . . . . . . . . . . . 2 . . . . . . . . . . . . . . . . . . . . . . Allies Hacked 2 | . . . . . . . . . . . . 1 . 1 . . . . . . . . . . . . . . . . . . . . . . Hacks Repelled . | . . . . . . . . . . . . . . . . . . . . . . . . . . . . . . . . . . . . . Allies | -11 -10 -10 -9 -9 -9 -8 -8 -7 -7 -7 -7 -7 -7 -7 -7 -6 -6 -6 -6 -6 -6 -5 -5 -5 -5 -5 -5 -5 -4 -4 -4 -4 -3 -3 -3 -3 -------- Run | Scr Mat Min Mat Min Exi Min Mat Fac Was Fac Gar Fac Low Low Dat Pro Fac Low Low Zio Dee Pro Fac Was Fac Upp Upp Zhi Pro Fac Was Fac Res Gar Res Qua Total Allies 29 | . 2 3 . . . . . 1 . 1 . 4 . 2 . 1 3 . . 4 . . . . . . . . . 1 . . 4 . 3 . Largest Group 4 | . 2 4 4 . . . . 1 1 2 1 2 1 2 . 1 3 . . 4 4 . . . . . . . . 1 . . 2 . 2 . Highest-Rated Group 244 | . 18 48 48 . . . . 10 10 36 26 76 26 60 . 94 94 . . 244 244 . . . . . . . . 10 . . 112 . 105 . Highest-Rated Ally 94 | . 10 16 16 . . . . 10 10 26 26 38 26 30 . 94 94 . . 94 94 . . . . . . . . 10 . . 64 . 58 . Total Orders 27 | . . 5 . . . . . . . 1 2 2 . . . . . . . . . . . . . 2 3 . 5 5 . . 2 . . . STAY 5 | . . 2 . . . . . . . 1 1 1 . . . . . . . . . . . . . . . . . . . . . . . . FOLLOW 5 | . . 3 . . . . . . . . 1 1 . . . . . . . . . . . . . . . . . . . . . . . . EXPLORE 10 | . . . . . . . . . . . . . . . . . . . . . . . . . . 2 2 . 3 2 . . 1 . . . RETURN 7 | . . . . . . . . . . . . . . . . . . . . . . . . . . . 1 . 2 3 . . 1 . . . Ally Attacks 131 | . . . 16 . . . . . . . . 7 . 9 . 12 27 . . . 25 . . . . . . . . . . . 19 . 16 . Total Damage 3533 | . . . 177 . . . . . . . . 251 . 172 . 419 749 . . . 407 . . . . . . . . . . . 990 . 368 . Kills 25 | . . . 4 . . . . . . . . 2 . 2 . 5 2 . . . 5 . . . . . . . . . . . 3 . 2 . Allies Corrupted . | . . . . . . . . . . . . . . . . . . . . . . . . . . . . . . . . . . . . . Allies Melted 1 | . . . . . . . . . . . . . . . . . . . . . . . . . . . . . . . . . 1 . . . Intel | -11 -10 -10 -9 -9 -9 -8 -8 -7 -7 -7 -7 -7 -7 -7 -7 -6 -6 -6 -6 -6 -6 -5 -5 -5 -5 -5 -5 -5 -4 -4 -4 -4 -3 -3 -3 -3 ------- Run | Scr Mat Min Mat Min Exi Min Mat Fac Was Fac Gar Fac Low Low Dat Pro Fac Low Low Zio Dee Pro Fac Was Fac Upp Upp Zhi Pro Fac Was Fac Res Gar Res Qua Robot Analysis Total 14 | . 3 . 1 . . . 3 . . 2 . . . . . . 1 . . . . . . . . . . 4 . . . . . . . . Derelict Logs Recovered 18 | . . 2 . 2 . . . . . . . . . 1 . 2 . 3 3 1 . 2 . . . . 1 . 1 . . . . . . . Drone Launches 14 | . . . . . . . . . . . . . . . . . . . . . . . . . . 2 2 . 3 3 . . 4 . . . Drone Recoveries 9 | . . . . . . . . . . . . . . . . . . . . . . . . . . 2 1 . 2 3 . . 1 . . . Exploration | -11 -10 -10 -9 -9 -9 -8 -8 -7 -7 -7 -7 -7 -7 -7 -7 -6 -6 -6 -6 -6 -6 -5 -5 -5 -5 -5 -5 -5 -4 -4 -4 -4 -3 -3 -3 -3 ------------- Run | Scr Mat Min Mat Min Exi Min Mat Fac Was Fac Gar Fac Low Low Dat Pro Fac Low Low Zio Dee Pro Fac Was Fac Upp Upp Zhi Pro Fac Was Fac Res Gar Res Qua Turns Passed 36012 | 73 1527 1330 2513 727 978 1683 3875 1022 107 460 1196 1052 191 267 29 374 982 370 224 1403 3820 374 997 146 2798 486 356 186 352 1245 348 1204 1514 364 1030 409 Spaces Moved 27728 | 40 694 625 1087 349 446 561 1179 1223 239 942 544 1925 469 657 80 698 1841 576 446 934 2094 231 764 190 1704 506 402 175 272 1375 374 950 1492 254 1380 10 Core 1067 | 12 . . . . . . . 215 . . 166 13 . . 3 . . . . 130 216 . . . 46 . . . . . . 7 30 . 229 . Treads 4978 | 28 694 625 1087 349 446 561 1136 52 . . . . . . . . . . . . . . . . . . . . . . . . . . . . Legs 2300 | . . . . . . . 40 . . . . . . . . . . . . . 1690 231 339 . . . . . . . . . . . . . Wheels 12 | . . . . . . . . . . . . . . . . . . . . . . . . . . . . . . . . . 12 . . . Hover 9102 | . . . . . . . 3 . . . . . . . . . . . . . 188 . 425 190 1658 506 402 175 272 1375 374 902 1450 254 928 . Flight 10269 | . . . . . . . . 956 239 942 378 1912 469 657 77 698 1841 576 446 804 . . . . . . . . . . . 41 . . 223 10 Fastest Speed 31 | 50 160 152 152 180 160 220 220 31 31 31 31 31 31 31 31 31 31 37 37 50 62 120 68 68 68 68 68 60 100 45 55 51 41 41 34 106 Average Speed 91 | 128 164 176 173 180 210 220 231 51 39 38 67 31 31 31 35 31 33 37 42 136 150 120 94 68 109 71 68 83 100 56 66 89 60 41 46 106 Slowest Speed 1650 | 160 180 180 180 180 220 220 430 280 40 40 150 150 31 31 150 31 114 120 120 500 550 120 170 68 1650 138 68 113 100 125 117 850 650 41 350 106 Overloaded Moves . | . . . . . . . . . . . . . . . . . . . . . . . . . . . . . . . . . . . . . Propulsion Burnouts . | . . . . . . . . . . . . . . . . . . . . . . . . . . . . . . . . . . . . . Robots Hopped 37 | . . . . . . . . 17 . 2 . 10 . . . . 8 . . . . . . . . . . . . . . . . . . . Cave-ins Triggered 5 | . . . . . . . . . . . . . . . . . 1 . . 1 . . . . . . . . 1 . . . . . . 2 Teleports 1 | . . . . . . . . . . . . . . . . . . . . . . . . . . . . . . . . 1 . . . . Exploration Rate (%) 60 | 3 96 94 97 83 69 100 89 26 94 28 63 51 62 68 69 64 54 67 61 85 87 46 16 77 45 65 81 60 61 37 96 26 37 38 37 3 Regions Visited 36 Branch Regions 18 Pre-discovered Areas 11 | . . . . 1 1 . . . . . . . . 1 1 . . 1 1 1 . 1 . . . . . 3 . . . . . . . . Known Exits Taken 13 | . 1 1 1 . . 1 1 . . 1 . 1 . . . 1 1 . . . . . . . 1 . . . . . . 1 1 . 1 . Unknown Exits Taken 15 | 1 . . . 1 1 . . . . . . . 1 1 1 . . 1 1 1 1 1 . . . 1 1 1 1 . . . . . . . Scrap Searched 30 | . . 2 . 3 . 2 . . . . . . 2 5 . 1 . 1 2 3 . 2 . . . 3 3 . 1 . . . . . . . Spaces Dug 347 | . 10 . 1 . . 12 3 20 . 5 10 22 6 3 . 8 33 2 . 6 28 . 17 . 40 7 8 . 7 41 . 14 7 8 20 9 Terrain Destroyed 1161 | . 14 . 53 . . 20 6 20 . 5 43 22 6 3 . 11 36 46 55 6 41 7 26 . 95 8 8 . 93 125 . 79 146 70 104 13 Melee 116 | . . . . . . . 1 20 . 5 5 22 4 3 . 6 32 2 . 6 1 . . . 3 . . . . 3 . . . . 3 . Projectile 342 | . 14 . 1 . . 20 2 . . . 9 . 2 . . 5 4 . . . 40 7 26 . 56 8 8 . 10 52 . 25 13 18 9 13 AOE 703 | . . . 52 . . . 3 . . . 29 . . . . . . 44 55 . . . . . 36 . . . 83 70 . 54 133 52 92 . Terrain Rammed . | . . . . . . . . . . . . . . . . . . . . . . . . . . . . . . . . . . . . . Walls Destroyed . | . . . . . . . . . . . . . . . . . . . . . . . . . . . . . . . . . . . . . Machines Disabled . | . . . . . . . . . . . . . . . . . . . . . . . . . . . . . . . . . . . . . Actions | -11 -10 -10 -9 -9 -9 -8 -8 -7 -7 -7 -7 -7 -7 -7 -7 -6 -6 -6 -6 -6 -6 -5 -5 -5 -5 -5 -5 -5 -4 -4 -4 -4 -3 -3 -3 -3 --------- Run | Scr Mat Min Mat Min Exi Min Mat Fac Was Fac Gar Fac Low Low Dat Pro Fac Low Low Zio Dee Pro Fac Was Fac Upp Upp Zhi Pro Fac Was Fac Res Gar Res Qua Total 36086 | 53 920 739 1456 418 484 911 2068 1548 250 1024 1331 2319 507 707 79 838 2132 713 467 1032 2622 282 982 207 2501 602 472 203 330 1717 450 1199 1985 468 1676 394 Wait 5249 | . 98 23 136 43 . 307 554 214 1 59 661 295 25 20 . 124 198 93 . 17 270 12 128 14 552 62 44 . 30 160 27 96 292 165 160 369 Move 27626 | 39 693 624 1086 348 445 560 1178 1192 238 938 541 1904 468 656 79 697 1828 575 445 933 2093 230 764 189 1703 505 401 174 270 1375 373 949 1492 253 1379 9 Hop 30 | . . . . . . . . 14 . 2 . 10 . . . . 4 . . . . . . . . . . . . . . . . . . . Pick Up 299 | 4 17 7 23 2 25 2 26 7 3 7 7 29 3 4 . . 7 13 2 22 28 . 10 2 20 2 1 2 . 9 3 6 2 . 4 . Fast Attach 323 | 7 8 1 7 . 1 1 14 10 2 3 . 5 . 1 . . 14 2 2 6 37 6 12 . 31 3 4 6 3 28 12 25 41 3 28 . Attach 98 | . 2 . 7 2 . . 7 8 . . . . . . . . 4 2 1 6 8 3 3 . 14 1 1 1 1 4 2 10 5 1 5 . Detach 75 | . 1 . 2 . . . 3 4 . . . . . . . . 3 2 1 1 12 2 5 . 13 . 1 1 2 2 2 5 7 1 5 . Swap 215 | . 13 9 29 3 3 4 28 1 . 1 10 1 2 1 . 2 5 1 2 1 5 2 6 . 23 7 8 3 2 17 . 5 10 3 8 . Drop 465 | . 13 14 30 4 6 3 31 45 5 6 7 35 3 6 . . 13 10 1 18 56 1 12 2 33 6 4 8 2 28 15 13 21 . 14 . Fire 1200 | 3 75 60 136 16 . 34 139 . . . 27 . 2 . . 5 15 3 13 . 91 22 42 . 102 16 8 . 19 85 . 75 103 42 52 15 Melee 313 | . . . . . 4 . 1 53 1 8 10 40 4 19 . 10 39 12 . 28 20 4 . . 9 . . 8 . 9 16 . . . 18 . Ram 19 | . . . . . . . . . . . . . . . . . . . . . . . . . . . . . . . . 4 12 . 3 . Kick . | . . . . . . . . . . . . . . . . . . . . . . . . . . . . . . . . . . . . . Crush . | . . . . . . . . . . . . . . . . . . . . . . . . . . . . . . . . . . . . . Escape Stasis 39 | . . . . . . . . . . . 23 . . . . . 2 . . . . . . . 1 . . . 1 . . 11 . . . 1 Rewire . | . . . . . . . . . . . . . . . . . . . . . . . . . . . . . . . . . . . . . Trap 135 | . . 1 . . . . 87 . . . 45 . . . . . . . . . 2 . . . . . . . . . . . . . . . Miscellaneous . | . . . . . . . . . . . . . . . . . . . . . . . . . . . . . . . . . . . . . Route ------- -11/Scrapyard -10/Materials (discovered 4 exits: *Mat x3 / *Min) -10/Mines (discovered 2 exits: *Mat x2) -9/Materials (discovered 5 exits: *Mat x3 / *Min x2) -9/Mines (discovered 3 exits: *Mat x2 / *Exi) -9/Exiles -8/Mines (discovered 2 exits: *Mat x2) -8/Materials (discovered 3 exits: *Fac x3) -7/Factory (discovered 4 exits: Sto x2 / Low x2) -7/Waste -7/Factory (discovered 5 exits: *Fac / Sto / Low x2 / Gar) -7/Garrison (discovered 3 exits: *Fac x3) -7/Factory (discovered 5 exits: *Fac x2 / *Sto / *Low x2) -7/Lower Caves -7/Lower Caves (discovered 2 exits: *Fac / *Dat) -7/Data Miner -6/Proximity Caves -6/Factory (discovered 6 exits: *Fac x2 / *Low x2 / *Ext x2) -6/Lower Caves -6/Lower Caves -6/Zion (discovered 2 exits: [*Dee] / [*Pro]) -6/Deep Caves -5/Proximity Caves -5/Factory (discovered 2 exits: *Upp / Gar) -5/Waste -5/Factory (discovered 3 exits: *Fac / *Upp x2) -5/Upper Caves -5/Upper Caves (discovered 2 exits: *Fac / *Zhi) -5/Zhirov -4/Proximity Caves -4/Factory (discovered 6 exits: Res x4 / *Upp x2) -4/Waste -4/Factory (discovered 2 exits: *Res x2) -3/Research (discovered 4 exits: Arm / Qua x2 / Gar) -3/Garrison -3/Research -3/Quarantine History --------- Turn | Location | Event 9 | -11/Scrapyard | Discovered new exit (range 16) 74 | -11/Scrapyard | Entered Materials 300 | -10/Materials | Build established: Mutant 377 | -10/Materials | Discovered new exit (range 9) 639 | -10/Materials | Discovered new exit (range 5) 756 | -10/Materials | Repaired Lgt. Treads 824 | -10/Materials | Identified exit to Materials 972 | -10/Materials | Discovered exit to Materials (range 6) 1092 | -10/Materials | Discovered new exit (range 10) 1111 | -10/Materials | Identified exit to Mines 1156 | -10/Materials | Central database locked down 1601 | -10/Materials | Entered Mines 1601 | -10/Mines | Accompanied by 2 allies 1661 | -10/Mines | Discovered exit to Materials (range 8) 1953 | -10/Mines | Discovered exit to Materials (range 4) 2105 | -10/Mines | Build established: Scavenger-Mutant 2359 | -10/Mines | Received a Rocket Launcher from a helpful Derelict 2472 | -10/Mines | Met a Derelict who couldn't figure out how to use a Trap Extractor 2495 | -10/Mines | Core integrity fell below 50% 2632 | -10/Mines | Learned Materials interactive machine intel 2667 | -10/Mines | Assisted by bots powering up and referring to "LRC-V3" 2931 | -10/Mines | Entered Materials 2931 | -9/Materials | Accompanied by 4 allies 2931 | -9/Materials | Evolved 2 slots: Utility x2 2932 | -9/Materials | Identified exit to Mines 2933 | -9/Materials | Loaded intel: 18 interactive machine locations 3216 | -9/Materials | Discovered new exit (range 10) 3247 | -9/Materials | Identified exit to Materials 3469 | -9/Materials | Build established: Mutant 3855 | -9/Materials | Build established: Scavenger-Mutant 3897 | -9/Materials | Discovered exit to Materials (range 16) 3990 | -9/Materials | Repaired Adv. Treads 4134 | -9/Materials | Central database locked down 4531 | -9/Materials | First assault squad dispatched 4546 | -9/Materials | Core integrity fell below 50% 5198 | -9/Materials | Core integrity fell below 20% 5373 | -9/Materials | Discovered exit to Materials (range 15) 5444 | -9/Materials | Entered Mines 5493 | -9/Mines | Met a Derelict bent on vengeance 5581 | -9/Mines | Discovered exit to Materials (range 13) 5603 | -9/Mines | Discovered exit to Materials (range 13) 5853 | -9/Mines | Learned location of 1 exit from Proximity Caves 5923 | -9/Mines | Learned location of Zion (-6) 5985 | -9/Mines | Build established: Hauler-Mutant 5994 | -9/Mines | Assembled infested the area 5999 | -9/Mines | Assisted by a Guerilla fighting off Assembled 6027 | -9/Mines | Deemed a non-threat by the Exiles lab entrance 6027 | -9/Mines | Discovered new exit (range 5) 6171 | -9/Mines | Entered Exiles 6216 | -9/Exiles | Met 8R-AWN 6250 | -9/Exiles | Met EX-HEX 6449 | -9/Exiles | Met EX-DEC 6545 | -9/Exiles | Met EX-BIN 6578 | -9/Exiles | Aligned with FarCom system 6580 | -9/Exiles | Given EX-Vault access code 6631 | -9/Exiles | Opened EX-Vault 6650 | -9/Exiles | Found Superbattery 6702 | -9/Exiles | Warned to stay clear of 0b10 Research branches 7117 | -9/Exiles | Discovered new exit (range 15) 7149 | -9/Exiles | Left Exiles lab with Superbattery 7149 | -9/Exiles | Entered Mines 7392 | -8/Mines | Discovered exit to Materials (range 3) 8818 | -8/Mines | Discovered exit to Materials (range 5) 8832 | -8/Mines | Entered Materials 8832 | -8/Materials | Evolved 2 slots: Utility x2 10179 | -8/Materials | Repaired Actuator Array 10230 | -8/Materials | Repaired Power Amplifier 10257 | -8/Materials | Repaired Lgt. Treads 10683 | -8/Materials | Discovered new exit (range 16) 11485 | -8/Materials | Identified exit to Factory 12418 | -8/Materials | Central database locked down 12707 | -8/Materials | Entered Factory 12707 | -7/Factory | Evolved 2 slots: Propulsion x2 13151 | -7/Factory | Build established: Hacker-Mutant 13154 | -7/Factory | Identified exit to Storage 13154 | -7/Factory | Identified exit to Lower Caves 13188 | -7/Factory | Fabricated Med. Storage Unit (x1) 13215 | -7/Factory | Fabricated Med. Storage Unit (x1) 13263 | -7/Factory | Repaired Adv. Weight Redist. System 13729 | -7/Factory | Manually triggered Chute Trap 13729 | -7/Factory | Sucked down chute 13729 | -7/Factory | Entered Waste 13729 | -7/Waste | The area was eerily silent 13750 | -7/Waste | 1 allies followed down the chute 13780 | -7/Waste | Discovered new exit (range 13) 13836 | -7/Waste | Entered Factory 13836 | -7/Factory | Accompanied by 1 ally 13956 | -7/Factory | Repaired Broken Adv. Plasma Cannon 13963 | -7/Factory | Repaired Adv. Cooling System 14172 | -7/Factory | Fabricated Nuclear Pulse Array? 14175 | -7/Factory | Discovered new exit (range 4) 14240 | -7/Factory | Fabricated Nuclear Pulse Array (x2) 14290 | -7/Factory | Identified exit to Garrison 14296 | -7/Factory | Entered Garrison 14296 | -7/Garrison | Accompanied by 1 ally 14382 | -7/Garrison | Triggered checkpoint 14393 | -7/Garrison | Discovered new exit (range 15) 14410 | -7/Garrison | Attempted to access garrison exit controls, blocked by remote lockdown 14808 | -7/Garrison | Triggered checkpoint 15002 | -7/Garrison | Discovered new exit (range 11) 15007 | -7/Garrison | Attempted to access garrison exit controls, blocked by remote lockdown 15201 | -7/Garrison | Build established: Hacker-Sprinter 15487 | -7/Garrison | Discovered new exit (range 8) 15492 | -7/Garrison | Entered Factory 15614 | -7/Factory | Fabricated X-62 Marksman? 15853 | -7/Factory | Discovered new exit (range 15) 15971 | -7/Factory | Central database locked down 15978 | -7/Factory | Garrison activated, responded to threat 16210 | -7/Factory | Fabricated Lgt. Antimatter Reactor (x2) 16354 | -7/Factory | Fabricated A-02 Transporter? 16381 | -7/Factory | Discovered new exit (range 5) 16501 | -7/Factory | Local fabrication network quarantined 16544 | -7/Factory | Entered Lower Caves 16544 | -7/Lower Caves | Accompanied by 1 ally 16706 | -7/Lower Caves | Discovered new exit (range 7) 16735 | -7/Lower Caves | Entered another Lower Caves area 16735 | -7/Lower Caves | Accompanied by 1 ally 16766 | -7/Lower Caves | Discovered new exit (range 9) 16785 | -7/Lower Caves | Learned Armory trap positions 16785 | -7/Lower Caves | Learned Factory terminal intel 16785 | -7/Lower Caves | Learned Armory terminal intel 16805 | -7/Lower Caves | Attracted the attention of an 0b10 outpost 16983 | -7/Lower Caves | Discovered new exit (range 10) 16992 | -7/Lower Caves | Learned Factory emergency access door positions 17002 | -7/Lower Caves | Entered Data Miner 17002 | -7/Data Miner | Discovered new exit (range 6) 17008 | -7/Data Miner | Met Data Miner 17015 | -7/Data Miner | Learned location of Section 7 (-3) 17015 | -7/Data Miner | Acquired the access code to Warlord's prototype stash 17020 | -7/Data Miner | Received God Mode back door access code from Data Miner 17031 | -7/Data Miner | Entered Proximity Caves 17031 | -6/Proximity Caves | Spotted B-75 Beast 17032 | -6/Proximity Caves | Identified exit to Factory 17106 | -6/Proximity Caves | Escorted by Enhanced Grunt 17366 | -6/Proximity Caves | Learned Factory garrison access intel 17369 | -6/Proximity Caves | Learned location of 1 exit from Factory 17405 | -6/Proximity Caves | Entered Factory 17405 | -6/Factory | Accompanied by 1 ally 17405 | -6/Factory | Evolved 2 slots: Power x1, Utility x1 17406 | -6/Factory | Identified exit to Extension 17408 | -6/Factory | Loaded intel: 21 terminal locations 17409 | -6/Factory | Loaded intel: 4 garrison access locations 17426 | -6/Factory | Discovered new exit (range 15) 17463 | -6/Factory | Garrison activated, responded to threat 17496 | -6/Factory | Repaired Xenon Bombardment Thruster 17746 | -6/Factory | Discovered new exit (range 16) 17812 | -6/Factory | Identified exit to Lower Caves 17906 | -6/Factory | Crushed by falling debris 17906 | -6/Factory | System corruption reached 10% 17937 | -6/Factory | Lost 4 parts (2n2u) 17982 | -6/Factory | Fabricated Mni. Smartbomb Launcher (x1) 18067 | -6/Factory | Fabricated Plasma Sword? 18070 | -6/Factory | Discovered new exit (range 9) 18094 | -6/Factory | Imp. Hacking Suite fried by hacking feedback 18106 | -6/Factory | Garrison activated, responded to threat 18217 | -6/Factory | Build established: Hacker-Mutant 18387 | -6/Factory | Entered Lower Caves 18427 | -6/Lower Caves | Lost 3 parts (2p1w) 18439 | -6/Lower Caves | Attracted the attention of an 0b10 checkpoint 18560 | -6/Lower Caves | Learned Factory trap positions 18730 | -6/Lower Caves | Discovered new exit (range 6) 18757 | -6/Lower Caves | Entered another Lower Caves area 18780 | -6/Lower Caves | Learned Factory stockpile data 18806 | -6/Lower Caves | Learned 4 Factory zone layouts 18968 | -6/Lower Caves | Discovered new exit (range 12) 18981 | -6/Lower Caves | Entered Zion 19044 | -6/Zion | Build established: Machinist-Mutant 19156 | -6/Zion | Discovered new exit (range 14) 19170 | -6/Zion | Learned location of Warlord (-4) 19202 | -6/Zion | System corruption cleaned by Quarantine Array 19389 | -6/Zion | Learned 4 Factory zone layouts 19545 | -6/Zion | Rebuked by Imprinter 19596 | -6/Zion | Given A8's code to call for help 19675 | -6/Zion | Gained Derelict followers 19755 | -6/Zion | Loaded intel: 4 derelict terminal locations 20029 | -6/Zion | Crushed by falling debris 20318 | -6/Zion | Enhanced Grunt warped into view, answering call for help 20325 | -6/Zion | Enhanced Grunt warped into view, answering call for help 20333 | -6/Zion | Build established: Mutant 20363 | -6/Zion | Discovered new exit (range 3) 20363 | -6/Zion | Saw the warning signs outside the Deep Caves entrance 20384 | -6/Zion | Entered Deep Caves 20384 | -6/Deep Caves | Accompanied by 4 allies 21522 | -6/Deep Caves | Attacked by Z-Imprinter 21549 | -6/Deep Caves | Allies destroyed Z-Imprinter 21588 | -6/Deep Caves | Found Prototype Protection 21588 | -6/Deep Caves | Identified Zio. Weapon Casing 21669 | -6/Deep Caves | Found Prototype Device 21669 | -6/Deep Caves | Identified Exp. Thermal Shield 21724 | -6/Deep Caves | Z-Facility disabled 21846 | -6/Deep Caves | Build established: Scavenger-Mutant 22242 | -6/Deep Caves | Found Prototype Protection 22242 | -6/Deep Caves | Identified Zio. Heavy Carapace 22602 | -6/Deep Caves | Discovered new exit (range 12) 22730 | -6/Deep Caves | Spotted as-14819 22875 | -6/Deep Caves | Found Zio. Weapon Casing 22884 | -6/Deep Caves | Found Zio. Weapon Casing 23070 | -6/Deep Caves | Destroyed as-14819 23541 | -6/Deep Caves | Found Zio. Weapon Casing 23750 | -6/Deep Caves | Exposed GOLEM chamber 23802 | -6/Deep Caves | Found Unknown Device 23802 | -6/Deep Caves | Identified GOLEM Unit 23863 | -6/Deep Caves | Found GOLEM Unit 24103 | -6/Deep Caves | Build established: Mutant 24204 | -6/Deep Caves | Entered Proximity Caves 24246 | -5/Proximity Caves | Core integrity fell below 50% 24272 | -5/Proximity Caves | Lost 3 parts (3u) 24316 | -5/Proximity Caves | Learned Factory stockpile data 24414 | -5/Proximity Caves | Attracted the attention of an 0b10 checkpoint 24556 | -5/Proximity Caves | Discovered new exit (range 15) 24561 | -5/Proximity Caves | Spotted B-75 Beast 24578 | -5/Proximity Caves | Entered Factory 24578 | -5/Factory | Evolved 2 slots: Utility x2 24579 | -5/Factory | Identified exit to Upper Caves 24581 | -5/Factory | Loaded intel: 111 trap records 24881 | -5/Factory | Build established: Hacker-Mutant 24899 | -5/Factory | Incoming investigation squad redirected 25085 | -5/Factory | Fabricated Adv. Hacking Suite? 25138 | -5/Factory | Fabricated Cmb. Gravmag System (x2) 25138 | -5/Factory | Incoming investigation squad redirected 25170 | -5/Factory | Local fabrication network quarantined 25199 | -5/Factory | Fabricated Cmb. Gravmag System (x2) 25428 | -5/Factory | Found Prototype Processor 25428 | -5/Factory | Identified Exp. Signal Interpreter 25455 | -5/Factory | Identified exit to Garrison 25478 | -5/Factory | First assault squad dispatched 25521 | -5/Factory | Repaired Adv. Cooling System 25575 | -5/Factory | Manually triggered Chute Trap 25575 | -5/Factory | Sucked down chute 25575 | -5/Factory | Entered Waste 25582 | -5/Waste | Spotted C-40 Crusher 25585 | -5/Waste | Spotted C-40 Crusher 25588 | -5/Waste | Spotted C-40 Crusher 25590 | -5/Waste | EMP discharged 25591 | -5/Waste | Spotted C-40 Crusher 25594 | -5/Waste | Spotted C-40 Crusher 25608 | -5/Waste | Crushed by Compactor (1 part destroyed, 1 dropped) 25610 | -5/Waste | Crushed by Compactor (0 parts destroyed, 2 dropped) 25682 | -5/Waste | Spotted C-40 Crusher 25690 | -5/Waste | EMP discharged 25690 | -5/Waste | System corruption reached 10% 25711 | -5/Waste | Discovered new exit (range 12) 25721 | -5/Waste | Entered Factory 25764 | -5/Factory | Discovered new exit (range 10) 25781 | -5/Factory | Fabricated Adv. System Shield? 25943 | -5/Factory | Fabricated Adv. System Shield? 26156 | -5/Factory | Lost 3 parts (2u1w) 27003 | -5/Factory | Fabricated Lgt. Fission Core? 27039 | -5/Factory | Incoming investigation squad redirected 27043 | -5/Factory | Fabricated Hcp. Storage Unit (x1) 27117 | -5/Factory | Incoming investigation squad redirected 27320 | -5/Factory | Build established: Machinist-Mutant 27919 | -5/Factory | Repaired Cmb. Gravmag System? 27989 | -5/Factory | Repaired Mic. Fission Core 28052 | -5/Factory | Repaired Imp. Proton Missile Launcher 28101 | -5/Factory | Repaired Imp. Cooling System 28121 | -5/Factory | First assault squad dispatched 28149 | -5/Factory | Build established: Hacker-Mutant 28167 | -5/Factory | Repaired Cmb. Gravmag System 28373 | -5/Factory | Found Prototype Processor 28373 | -5/Factory | Identified Exp. Targeting Computer 28432 | -5/Factory | Fabricated Mni. Drone Bay? 28519 | -5/Factory | Entered Upper Caves 28530 | -5/Upper Caves | Attacked by a delusional Derelict stockpiling parts 28740 | -5/Upper Caves | Acquired the password to a Derelict Tinkerer's latest research 28752 | -5/Upper Caves | Found Prototype Special Weapon 28803 | -5/Upper Caves | Encountered a Warlord checkpoint 29000 | -5/Upper Caves | Discovered new exit (range 10) 29002 | -5/Upper Caves | Attracted the attention of an 0b10 outpost 29005 | -5/Upper Caves | Entered another Upper Caves area 29131 | -5/Upper Caves | Discovered new exit (range 3) 29168 | -5/Upper Caves | Spotted B-75 Beast 29222 | -5/Upper Caves | Learned location of 1 exit from Factory 29275 | -5/Upper Caves | Build established: Machinist-Mutant 29276 | -5/Upper Caves | Discovered new exit (range 24) 29361 | -5/Upper Caves | Entered Zhirov 29361 | -5/Zhirov | Discovered new exit (range 3) 29386 | -5/Zhirov | Learned location of Quarantine (-3) 29386 | -5/Zhirov | Learned location of Testing (-2) 29386 | -5/Zhirov | Learned location of Command (-1) 29405 | -5/Zhirov | Found Alien Artifact 29405 | -5/Zhirov | Identified Integrated Dissipator 29405 | -5/Zhirov | Installed Integrated Dissipator, increased core heat dissipation (+20) 29417 | -5/Zhirov | Found Alien Artifact 29547 | -5/Zhirov | Entered Proximity Caves 29696 | -4/Proximity Caves | Crushed by falling debris 29791 | -4/Proximity Caves | Learned 4 Research zone layouts 29875 | -4/Proximity Caves | Discovered new exit (range 14) 29899 | -4/Proximity Caves | Entered Factory 29899 | -4/Factory | Evolved 2 slots: Propulsion x1, Utility x1 29900 | -4/Factory | Identified exit to Research 30076 | -4/Factory | Repaired Cld. Gravmag System 30103 | -4/Factory | Repaired Mic. Fission Core 30193 | -4/Factory | Incoming investigation squad redirected 30291 | -4/Factory | Identified exit to Upper Caves 30301 | -4/Factory | Identified Transdimensional Reconstructor 30301 | -4/Factory | Identified Molecular Deconstructor 30335 | -4/Factory | Build established: Hacker-Mutant 30344 | -4/Factory | Fabricated Cmb. Gravmag System? 30620 | -4/Factory | Fabricated Lgt. Regenerative Plating? 30872 | -4/Factory | Repaired Adv. Plasma Cannon 30889 | -4/Factory | Found Prototype Slashing Weapon 30889 | -4/Factory | Identified Centrium Greatsword 30929 | -4/Factory | Repaired Cmb. Gravmag System? 31059 | -4/Factory | Destroyed 11 combat bots 31065 | -4/Factory | Found Prototype Device 31065 | -4/Factory | Identified EM Disruption Field 31144 | -4/Factory | Sucked down chute 31144 | -4/Factory | Entered Waste 31144 | -4/Waste | The area was eerily silent 31231 | -4/Waste | Discovered new exit (range 16) 31233 | -4/Waste | Found Adv. Powered Armor 31492 | -4/Waste | Entered Factory 31534 | -4/Factory | Found Prototype Hackware 31646 | -4/Factory | Repaired Broken Cld. Gravmag System? 31671 | -4/Factory | Warped through subspace 31681 | -4/Factory | Discovered exit to Research (range 12) 31699 | -4/Factory | Lost 3 parts (1n2u) 31765 | -4/Factory | System corruption reached 10% 31858 | -4/Factory | Found Unknown Launcher 31858 | -4/Factory | Identified Gamma Bomb Array 31898 | -4/Factory | Incoming investigation squad redirected 31987 | -4/Factory | Discovered exit to Research (range 9) 32081 | -4/Factory | Lost 7 parts (2n4u1w) 32185 | -4/Factory | Core integrity fell below 50% 32215 | -4/Factory | Lost 5 parts (1p1n1u2w) 32242 | -4/Factory | First assault squad dispatched 32260 | -4/Factory | Incoming assault squad redirected 32463 | -4/Factory | Lost 3 parts (1p1u1w) 32566 | -4/Factory | Incoming investigation squad redirected 32581 | -4/Factory | Repaired Faulty Centrium Greatsword 32584 | -4/Factory | Core integrity fell below 20% 32606 | -4/Factory | Identified Exp. Hacking Suite 32655 | -4/Factory | Lost 3 parts (1n1u1w) 32696 | -4/Factory | Entered Research 32696 | -3/Research | Evolved 2 slots: Propulsion x1, Utility x1 32906 | -3/Research | Found Prototype Device 32906 | -3/Research | Identified Exp. Focal Shield 33084 | -3/Research | Lost 5 parts (3u2w) 33488 | -3/Research | Fabricated Cmb. Linear Gravjet? 33593 | -3/Research | System corruption reached 10% 33669 | -3/Research | Lost 10 parts (2p2n4u2w) 33756 | -3/Research | Fabricated Cmb. Linear Gravjet (x2) 33773 | -3/Research | Local fabrication network quarantined 33786 | -3/Research | Incoming investigation squad redirected 33946 | -3/Research | First assault squad dispatched 34069 | -3/Research | Incoming assault squad redirected 34124 | -3/Research | Identified exit to Armory 34124 | -3/Research | Identified exit to Quarantine 34170 | -3/Research | Spotted B-86 Titan 34210 | -3/Research | Identified exit to Garrison 34210 | -3/Research | Entered Garrison 34213 | -3/Garrison | Installed Relay Interface Framework 34304 | -3/Garrison | Triggered checkpoint 34308 | -3/Garrison | Garrison Relay disabled 34424 | -3/Garrison | Garrison Relay disabled 34542 | -3/Garrison | Discovered new exit (range 14) 34574 | -3/Garrison | Entered Research 35169 | -3/Research | Found Prototype Processor 35169 | -3/Research | Identified Exp. Melee Analysis Suite 35195 | -3/Research | Found Prototype Processor 35195 | -3/Research | Identified Exp. Target Analyzer 35198 | -3/Research | Found Exp. Target Analyzer 35221 | -3/Research | Core integrity fell below 50% 35255 | -3/Research | Lost 7 parts (2p4u1w) 35324 | -3/Research | First assault squad dispatched 35335 | -3/Research | Lost 6 parts (3p2n1w) 35415 | -3/Research | Core integrity fell below 20% 35420 | -3/Research | Spotted B-86 Titan 35448 | -3/Research | Lost 5 parts (2n3u) 35458 | -3/Research | Fabricated Enh. Nova Cannon? 35517 | -3/Research | System corruption reached 30% 35591 | -3/Research | Discovered exit to Quarantine (range 12) 35604 | -3/Research | Entered Quarantine 35605 | -3/Quarantine | Maximum security lockdown engaged 35940 | -3/Quarantine | Crushed by falling debris 35954 | -3/Quarantine | Spotted Executioner 35954 | -3/Quarantine | Spotted Striker 35954 | -3/Quarantine | Spotted Striker 35988 | -3/Quarantine | Spotted Executioner 36014 | -3/Quarantine | Crushed by falling debris 36014 | -3/Quarantine | Smashed by cave-in Last Messages --------------- 35955_ P-80 Master unfolds itself. 35955_ H-77 Assassin unfolds itself. 35955_ Executioner unfolds itself. 35955_ M-36 Artificer unfolds itself. 35955_ C-30 ARC bursts open, deploying its payload. 35955_ P-80 Master unfolds itself. 35955_ M-36 Artificer unfolds itself. 35955_ C-30 ARC bursts open, deploying its payload. 35955_ G-73 Enforcer unfolds itself. 35955_ G-67 Veteran unfolds itself. 35975_ System corrupted: Component data lost. 35988_ System corrupted: Hvy. Gauss Cannon targeting data glitched. 35988_ Slug penetrates Earth. 35992_ System corrupted: Matter fused (-6). 35994_ System corrupted: Hvy. Gauss Cannon targeting data glitched. 36011_ HZEPJRWV=V CF VZ2P7%WFHQ>N 36014_ The unstable cave ceiling collapses. 36014_ Crushed by falling debris. 36014_ Relay Coupler [Grunt] destroyed. 36014_ System corrupted by crushing effect (+5). Map ----- +----------------------------------------------------+ | | | | | | | | | | | | | | | | | | | | | | | | | ???????????????????????????????????????????????? | | ???????????????????????????????????????????????? | | ???????????????????????????????????????????????? | | ???????????????????????????????????????????????? | | ???????????????????????????????????????????????? | | ???????????????????????????????????????????????? | | ?????????????????????????????T"????????????????? | | ??????????????????????????? ???????????????? | | ??????????????????????????p ??????????????? | | ?????????????????????????#pp ??????????????? | | ?????????????????????????"%pe ?????????????? | | ????????????????????????""eKhE ?????????????? | | ??????????????????######""YgK"""???????????????? | | ??????????????????# @GYYpl"""???????????????? | | ??????????????????######""Egg"""???????????????? | | ???????????????????### #""Ygg"""???????????????? | | ???????????????#####"# #?"bml""????????????????? | | ???????????????# ####?#pge""????????????????? | | ???????????????# #?????mhgggi???????????????? | | ???????????????# #??????#####???????????????? | | ???????????????# ?????????????????????? | | ???????????????# ????????????????? | | ???????????????# h ???????????????? | | ???????????????+ ??????????????? | | ???????????????##"T"#####"####h#???????????????? | | ????????????????#""##?????! ???????????????????? | | ????????????????####??????? ?????????????????? | | ?????????????????????????????! ????????????????? | | ?????????????????????????????? ????????????????? | | ???????????????????????????????????????????????? | | ???????????????????????????????????????????????? | | ???????????????????????????????????????????????? | | ???????????????????????????????????????????????? | | ???????????????????????????????????????????????? | | ???????????????????????????????????????????????? | | ???????????????????????????????????????????????? | | ???????????????????????????????????????????????? | | ???????????????????????????????????????????????? | +----------------------------------------------------+ Best States ------------- Heat Dissipation 156 Energy Generation 43 Energy Capacity 2340 Matter Stores 300 Matter Capacity 300 Sight Range 16 Robot Scan Range 20 Terrain Scan Range 16 Terrain Scan Density 10 Jamming Range 12 Cloak Strength 2 Power Amplification 30 Additional Mass Support 18 Base Temperature (-) 200 Corruption Prevention 12 Armor Coverage 1200 Resistance: KI 30 Resistance: TH 30 Weapon Shielding 100 Phase Shifting 5 Evasion (%) 63 Melee Accuracy 8 Launcher Accuracy 40 Target Analysis 12 Recoil Reduction 2 Particle Charging 25 Kinecelleration 40 Salvage Targeting 4 Offensive Hacking 58 Defensive Hacking 32 Relay Coupler Types 72 Relay Coupler Value 2 Item Schematics ----------------- Hcp. Storage Unit | -9/Materials | Hacked Med. Storage Unit | -9/Materials | Hacked Hacking Suite | -9/Materials | Scanalyzed System Shield | -8/Materials | Scanalyzed Imp. Flight Unit | -8/Materials | Scanalyzed Adv. Weight Redist. System | -8/Materials | Scanalyzed Lrn. Tractor Beam | -7/Factory | Hacked Flak Gun | -7/Factory | Scanalyzed Greatsword | -7/Factory | Hacked Hvy. Phase Cannon | -7/Factory | Hacked Lrn. Sensor Array | -7/Factory | Hacked Nuclear Pulse Array | -7/Factory | Hacked Launcher Loader | -7/Factory | Hacked Adv. Plasma Cannon | -7/Factory | Scanalyzed Adv. Cooling System | -7/Factory | Scanalyzed Lgt. Fission Core | -7/Factory | Hacked Adv. Terrain Scan Processor | -7/Factory | Hacked Imp. Arc Projector | -7/Factory | Hacked Combat Drone Bay | -7/Data Miner | Free Lgt. Regenerative Plating | -7/Data Miner | Free Exp. Flexi-carbon Leg | -7/Data Miner | Free Cmb. Gravmag System | -7/Data Miner | Free Exp. Terrain Scanner | -7/Data Miner | Free Mni. Smartbomb Launcher | -7/Data Miner | Free Plasma Sword | -7/Data Miner | Free Imp. Launcher Guidance Computer | -6/Factory | Hacked Nuclear Pulse Thruster | -6/Factory | Hacked Mni. Drone Bay | -6/Factory | Hacked Adv. Hacking Suite | -5/Factory | Hacked Adv. Field Recycling Unit | -5/Factory | Hacked Adv. System Shield | -5/Factory | Hacked Exp. Weapon Shielding | -5/Factory | Hacked Exp. Sensor Array | -5/Factory | Hacked Exp. Signal Interpreter | -5/Factory | Hacked Assault Drone Bay | -5/Zhirov | Free Exp. Heat Sink | -5/Zhirov | Free Exp. Optical Array | -5/Zhirov | Free Imp. Arc Thrower | -5/Zhirov | Free Field Propulsion Array | -4/Factory | Scanalyzed Hyp. Coil Gun | -4/Factory | Scanalyzed Cloaking Device | -4/Factory | Scanalyzed Adv. Shield Generator | -4/Factory | Scanalyzed Imp. Recalibrator | -4/Factory | Hacked Robot Schematics ------------------ S-27 Virus | -7/Factory | Hacked L-41 Fighter | -7/Factory | Hacked Fabricated ------------ Med. Storage Unit | x1 | -7/Factory Med. Storage Unit | x1 | -7/Factory Nuclear Pulse Array | x2 | -7/Factory Nuclear Pulse Array | x2 | -7/Factory X-62 Marksman | x2 | -7/Factory | Preloaded Lgt. Antimatter Reactor | x2 | -7/Factory | Preloaded A-02 Transporter | x1 | -7/Factory | Preloaded Mni. Smartbomb Launcher | x1 | -6/Factory Plasma Sword | x1 | -6/Factory Adv. Hacking Suite | x1 | -5/Factory Cmb. Gravmag System | x2 | -5/Factory Cmb. Gravmag System | x2 | -5/Factory Adv. System Shield | x1 | -5/Factory Adv. System Shield | x1 | -5/Factory Lgt. Fission Core | x2 | -5/Factory Hcp. Storage Unit | x1 | -5/Factory Mni. Drone Bay | x1 | -5/Factory Cmb. Gravmag System | x2 | -4/Factory Lgt. Regenerative Plating | x1 | -4/Factory Cmb. Linear Gravjet | x2 | -3/Research | Preloaded Cmb. Linear Gravjet | x2 | -3/Research | Preloaded Enh. Nova Cannon | x1 | -3/Research | Preloaded Alien Tech Used ----------------- Integrated Dissipator Transdimensional Reconstructor Achievements -------------- Great Explorer Challenges ------------ None Game ------ Seed AccelerationFireLoader Manual? 0 Play Time 06:45:07 Cumulative 476.0 hours Start 2021.08.11 @ 14:02:13 End 2021.08.13 @ 10:19:36 Sessions 5 Manual Loads 0 Difficulty Rogue Special Mode None Game No. 375 Rogue 375 Adventurer 0 Explorer 0 Win Type - Total 3 Types 2/0/0/1/0/0/0/0/0 Lore% 73 Gallery% 83 Achievement% 66 Wizard Run 0 Options --------- ASCII 0 Keyboard 1 Movement Numpad Keybinds 0 Fullscreen 1 Font 12/Terminus Map View 83x54 Tactical HUD 1 Map Filters NONE Filters NONE Steam 1 RUN: 79db7371-1441-4ea6-ab58-74022604e611